Workbook

Sheet similarity analysis (direct)
A1: OAM | B1: attribute_1 | C1: attribute_2 | D1: attribute_3 | E1: attribute_4 | F1: attribute_5 | G1: attribute_6 | H1: Y0 | I1: naive average | J1: naive ranks | K1: optimized ranks | L1: abs differences | N1: Case study
A2: object_1 | B2: 76 | C2: 92 | D2: 72 | E2: 95 | F2: 78 | G2: 57 | H2: 1000 | I2: =AVERAGE(B2:G2) -> 78.33333333 | J2: =RANK(I2,I$2:I$17,0) -> 7 | K2: =RANK(I65,I$65:I$80,0) -> 7 | L2: =ABS(J2-K2) -> 0 | N2: objects | O2: = | P2: Students
A3: object_2 | B3: 60 | C3: 85 | D3: 91 | E3: 82 | F3: 78 | G3: 72 | H3: 1000 | I3: =AVERAGE(B3:G3) -> 78 | J3: =RANK(I3,I$2:I$17,0) -> 9 | K3: =RANK(I66,I$65:I$80,0) -> 11 | L3: =ABS(J3-K3) -> 2 | N3: attributes | O3: = | P3: Performances
A4: object_3 | B4: 79 | C4: 99 | D4: 74 | E4: 78 | F4: 87 | G4: 88 | H4: 1000 | I4: 84.16666667 | J4: 2 | K4: 2 | L4: 0 | N4: question | O4: = | P4: Could each Student have the same evaluation value? (anti-discriminative modelling)
A5: object_4 | B5: 93 | C5: 56 | D5: 99 | E5: 53 | F5: 82 | G5: 87 | H5: 1000 | I5: 78.33333333 | J5: 7 | K5: 9 | L5: 2
A6: object_5 | B6: 68 | C6: 55 | D6: 83 | E6: 93 | F6: 100 | G6: 90 | H6: 1000 | I6: 81.5 | J6: 5 | K6: 4 | L6: 1
A7: object_6 | B7: 91 | C7: 56 | D7: 90 | E7: 90 | F7: 53 | G7: 51 | H7: 1000 | I7: 71.83333333 | J7: 14 | K7: 14 | L7: 0
A8: object_7 | B8: 63 | C8: 91 | D8: 84 | E8: 73 | F8: 99 | G8: 85 | H8: 1000 | I8: 82.5 | J8: 3 | K8: 5 | L8: 2
A9: object_8 | B9: 64 | C9: 74 | D9: 57 | E9: 87 | F9: 74 | G9: 56 | H9: 1000 | I9: 68.66666667 | J9: 15 | K9: 15 | L9: 0
A10: object_9 | B10: 86 | C10: 64 | D10: 76 | E10: 82 | F10: 87 | G10: 78 | H10: 1000 | I10: 78.83333333 | J10: 6 | K10: 6 | L10: 0
A11: object_10 | B11: 93 | C11: 83 | D11: 98 | E11: 95 | F11: 88 | G11: 85 | H11: 1000 | I11: 90.33333333 | J11: 1 | K11: 1 | L11: 0
A12: object_11 | B12: 87 | C12: 57 | D12: 95 | E12: 75 | F12: 85 | G12: 93 | H12: 1000 | I12: 82 | J12: 4 | K12: 3 | L12: 1
A13: object_12 | B13: 62 | C13: 54 | D13: 77 | E13: 69 | F13: 62 | G13: 73 | H13: 1000 | I13: 66.16666667 | J13: 16 | K13: 16 | L13: 0
A14: object_13 | B14: 75 | C14: 81 | D14: 93 | E14: 70 | F14: 59 | G14: 79 | H14: 1000 | I14: 76.16666667 | J14: 11 | K14: 13 | L14: 2
A15: object_14 | B15: 85 | C15: 58 | D15: 61 | E15: 54 | F15: 95 | G15: 96 | H15: 1000 | I15: 74.83333333 | J15: 12 | K15: 8 | L15: 4
A16: object_15 | B16: 88 | C16: 66 | D16: 91 | E16: 58 | F16: 87 | G16: 75 | H16: 1000 | I16: 77.5 | J16: 10 | K16: 10 | L16: 0
A17: object_16 | B17: 53 | C17: 91 | D17: 58 | E17: 70 | F17: 87 | G17: 87 | H17: 1000 | I17: 74.33333333 | J17: 13 | K17: 12 | L17: 1
A19: direction | B19: 0 | C19: 0 | D19: 0 | E19: 0 | F19: 0 | G19: 0
A20: meaning | B20: the more a(i) the more Y | C20: the more a(i) the more Y | D20: the more a(i) the more Y | E20: the more a(i) the more Y | F20: the more a(i) the more Y | G20: the more a(i) the more Y | H20: constant value
A23: ='similarity analysis (direct)'!A1 -> OAM | B23: ='similarity analysis (direct)'!B1 -> attribute_1 | C23: ='similarity analysis (direct)'!C1 -> attribute_2 | D23: ='similarity analysis (direct)'!D1 -> attribute_3 | E23: ='similarity analysis (direct)'!E1 -> attribute_4 | F23: ='similarity analysis (direct)'!F1 -> attribute_5 | G23: ='similarity analysis (direct)'!G1 -> attribute_6 | H23: ='similarity analysis (direct)'!H1 -> Y0
A24: ='similarity analysis (direct)'!A2 -> object_1 | B24: =RANK('similarity analysis (direct)'!B2,'similarity analysis (direct)'!B$2:B$17,'similarity analysis (direct)'!B$19) -> 9 | C24: =RANK('similarity analysis (direct)'!C2,'similarity analysis (direct)'!C$2:C$17,'similarity analysis (direct)'!C$19) -> 2 | D24: =RANK('similarity analysis (direct)'!D2,'similarity analysis (direct)'!D$2:D$17,'similarity analysis (direct)'!D$19) -> 13 | E24: =RANK('similarity analysis (direct)'!E2,'similarity analysis (direct)'!E$2:E$17,'similarity analysis (direct)'!E$19) -> 1 | F24: =RANK('similarity analysis (direct)'!F2,'similarity analysis (direct)'!F$2:F$17,'similarity analysis (direct)'!F$19) -> 11 | G24: =RANK('similarity analysis (direct)'!G2,'similarity analysis (direct)'!G$2:G$17,'similarity analysis (direct)'!G$19) -> 14 | H24: ='similarity analysis (direct)'!H2 -> 1000
A25: ='similarity analysis (direct)'!A3 -> object_2 | B25: =RANK('similarity analysis (direct)'!B3,'similarity analysis (direct)'!B$2:B$17,'similarity analysis (direct)'!B$19) -> 15 | C25: =RANK('similarity analysis (direct)'!C3,'similarity analysis (direct)'!C$2:C$17,'similarity analysis (direct)'!C$19) -> 5 | D25: =RANK('similarity analysis (direct)'!D3,'similarity analysis (direct)'!D$2:D$17,'similarity analysis (direct)'!D$19) -> 5 | E25: =RANK('similarity analysis (direct)'!E3,'similarity analysis (direct)'!E$2:E$17,'similarity analysis (direct)'!E$19) -> 6 | F25: =RANK('similarity analysis (direct)'!F3,'similarity analysis (direct)'!F$2:F$17,'similarity analysis (direct)'!F$19) -> 11 | G25: =RANK('similarity analysis (direct)'!G3,'similarity analysis (direct)'!G$2:G$17,'similarity analysis (direct)'!G$19) -> 13 | H25: ='similarity analysis (direct)'!H3 -> 1000
A26: ='similarity analysis (direct)'!A4 -> object_3 | B26: =RANK('similarity analysis (direct)'!B4,'similarity analysis (direct)'!B$2:B$17,'similarity analysis (direct)'!B$19) -> 8 | C26: =RANK('similarity analysis (direct)'!C4,'similarity analysis (direct)'!C$2:C$17,'similarity analysis (direct)'!C$19) -> 1 | D26: =RANK('similarity analysis (direct)'!D4,'similarity analysis (direct)'!D$2:D$17,'similarity analysis (direct)'!D$19) -> 12 | E26: =RANK('similarity analysis (direct)'!E4,'similarity analysis (direct)'!E$2:E$17,'similarity analysis (direct)'!E$19) -> 8 | F26: =RANK('similarity analysis (direct)'!F4,'similarity analysis (direct)'!F$2:F$17,'similarity analysis (direct)'!F$19) -> 5 | G26: =RANK('similarity analysis (direct)'!G4,'similarity analysis (direct)'!G$2:G$17,'similarity analysis (direct)'!G$19) -> 4 | H26: ='similarity analysis (direct)'!H4 -> 1000
A27: ='similarity analysis (direct)'!A5 -> object_4 | B27: =RANK('similarity analysis (direct)'!B5,'similarity analysis (direct)'!B$2:B$17,'similarity analysis (direct)'!B$19) -> 1 | C27: =RANK('similarity analysis (direct)'!C5,'similarity analysis (direct)'!C$2:C$17,'similarity analysis (direct)'!C$19) -> 13 | D27: =RANK('similarity analysis (direct)'!D5,'similarity analysis (direct)'!D$2:D$17,'similarity analysis (direct)'!D$19) -> 1 | E27: =RANK('similarity analysis (direct)'!E5,'similarity analysis (direct)'!E$2:E$17,'similarity analysis (direct)'!E$19) -> 16 | F27: =RANK('similarity analysis (direct)'!F5,'similarity analysis (direct)'!F$2:F$17,'similarity analysis (direct)'!F$19) -> 10 | G27: =RANK('similarity analysis (direct)'!G5,'similarity analysis (direct)'!G$2:G$17,'similarity analysis (direct)'!G$19) -> 5 | H27: ='similarity analysis (direct)'!H5 -> 1000
A28: ='similarity analysis (direct)'!A6 -> object_5 | B28: =RANK('similarity analysis (direct)'!B6,'similarity analysis (direct)'!B$2:B$17,'similarity analysis (direct)'!B$19) -> 11 | C28: =RANK('similarity analysis (direct)'!C6,'similarity analysis (direct)'!C$2:C$17,'similarity analysis (direct)'!C$19) -> 15 | D28: =RANK('similarity analysis (direct)'!D6,'similarity analysis (direct)'!D$2:D$17,'similarity analysis (direct)'!D$19) -> 9 | E28: =RANK('similarity analysis (direct)'!E6,'similarity analysis (direct)'!E$2:E$17,'similarity analysis (direct)'!E$19) -> 3 | F28: =RANK('similarity analysis (direct)'!F6,'similarity analysis (direct)'!F$2:F$17,'similarity analysis (direct)'!F$19) -> 1 | G28: =RANK('similarity analysis (direct)'!G6,'similarity analysis (direct)'!G$2:G$17,'similarity analysis (direct)'!G$19) -> 3 | H28: ='similarity analysis (direct)'!H6 -> 1000
A29: ='similarity analysis (direct)'!A7 -> object_6 | B29: =RANK('similarity analysis (direct)'!B7,'similarity analysis (direct)'!B$2:B$17,'similarity analysis (direct)'!B$19) -> 3 | C29: =RANK('similarity analysis (direct)'!C7,'similarity analysis (direct)'!C$2:C$17,'similarity analysis (direct)'!C$19) -> 13 | D29: =RANK('similarity analysis (direct)'!D7,'similarity analysis (direct)'!D$2:D$17,'similarity analysis (direct)'!D$19) -> 7 | E29: =RANK('similarity analysis (direct)'!E7,'similarity analysis (direct)'!E$2:E$17,'similarity analysis (direct)'!E$19) -> 4 | F29: =RANK('similarity analysis (direct)'!F7,'similarity analysis (direct)'!F$2:F$17,'similarity analysis (direct)'!F$19) -> 16 | G29: =RANK('similarity analysis (direct)'!G7,'similarity analysis (direct)'!G$2:G$17,'similarity analysis (direct)'!G$19) -> 16 | H29: ='similarity analysis (direct)'!H7 -> 1000
A30: ='similarity analysis (direct)'!A8 -> object_7 | B30: =RANK('similarity analysis (direct)'!B8,'similarity analysis (direct)'!B$2:B$17,'similarity analysis (direct)'!B$19) -> 13 | C30: =RANK('similarity analysis (direct)'!C8,'similarity analysis (direct)'!C$2:C$17,'similarity analysis (direct)'!C$19) -> 3 | D30: =RANK('similarity analysis (direct)'!D8,'similarity analysis (direct)'!D$2:D$17,'similarity analysis (direct)'!D$19) -> 8 | E30: =RANK('similarity analysis (direct)'!E8,'similarity analysis (direct)'!E$2:E$17,'similarity analysis (direct)'!E$19) -> 10 | F30: =RANK('similarity analysis (direct)'!F8,'similarity analysis (direct)'!F$2:F$17,'similarity analysis (direct)'!F$19) -> 2 | G30: =RANK('similarity analysis (direct)'!G8,'similarity analysis (direct)'!G$2:G$17,'similarity analysis (direct)'!G$19) -> 7 | H30: ='similarity analysis (direct)'!H8 -> 1000
A31: ='similarity analysis (direct)'!A9 -> object_8 | B31: =RANK('similarity analysis (direct)'!B9,'similarity analysis (direct)'!B$2:B$17,'similarity analysis (direct)'!B$19) -> 12 | C31: =RANK('similarity analysis (direct)'!C9,'similarity analysis (direct)'!C$2:C$17,'similarity analysis (direct)'!C$19) -> 8 | D31: =RANK('similarity analysis (direct)'!D9,'similarity analysis (direct)'!D$2:D$17,'similarity analysis (direct)'!D$19) -> 16 | E31: =RANK('similarity analysis (direct)'!E9,'similarity analysis (direct)'!E$2:E$17,'similarity analysis (direct)'!E$19) -> 5 | F31: =RANK('similarity analysis (direct)'!F9,'similarity analysis (direct)'!F$2:F$17,'similarity analysis (direct)'!F$19) -> 13 | G31: =RANK('similarity analysis (direct)'!G9,'similarity analysis (direct)'!G$2:G$17,'similarity analysis (direct)'!G$19) -> 15 | H31: ='similarity analysis (direct)'!H9 -> 1000
A32: ='similarity analysis (direct)'!A10 -> object_9 | B32: =RANK('similarity analysis (direct)'!B10,'similarity analysis (direct)'!B$2:B$17,'similarity analysis (direct)'!B$19) -> 6 | C32: =RANK('similarity analysis (direct)'!C10,'similarity analysis (direct)'!C$2:C$17,'similarity analysis (direct)'!C$19) -> 10 | D32: =RANK('similarity analysis (direct)'!D10,'similarity analysis (direct)'!D$2:D$17,'similarity analysis (direct)'!D$19) -> 11 | E32: =RANK('similarity analysis (direct)'!E10,'similarity analysis (direct)'!E$2:E$17,'similarity analysis (direct)'!E$19) -> 6 | F32: =RANK('similarity analysis (direct)'!F10,'similarity analysis (direct)'!F$2:F$17,'similarity analysis (direct)'!F$19) -> 5 | G32: =RANK('similarity analysis (direct)'!G10,'similarity analysis (direct)'!G$2:G$17,'similarity analysis (direct)'!G$19) -> 10 | H32: ='similarity analysis (direct)'!H10 -> 1000
A33: ='similarity analysis (direct)'!A11 -> object_10 | B33: =RANK('similarity analysis (direct)'!B11,'similarity analysis (direct)'!B$2:B$17,'similarity analysis (direct)'!B$19) -> 1 | C33: =RANK('similarity analysis (direct)'!C11,'similarity analysis (direct)'!C$2:C$17,'similarity analysis (direct)'!C$19) -> 6 | D33: =RANK('similarity analysis (direct)'!D11,'similarity analysis (direct)'!D$2:D$17,'similarity analysis (direct)'!D$19) -> 2 | E33: =RANK('similarity analysis (direct)'!E11,'similarity analysis (direct)'!E$2:E$17,'similarity analysis (direct)'!E$19) -> 1 | F33: =RANK('similarity analysis (direct)'!F11,'similarity analysis (direct)'!F$2:F$17,'similarity analysis (direct)'!F$19) -> 4 | G33: =RANK('similarity analysis (direct)'!G11,'similarity analysis (direct)'!G$2:G$17,'similarity analysis (direct)'!G$19) -> 7 | H33: ='similarity analysis (direct)'!H11 -> 1000
A34: ='similarity analysis (direct)'!A12 -> object_11 | B34: =RANK('similarity analysis (direct)'!B12,'similarity analysis (direct)'!B$2:B$17,'similarity analysis (direct)'!B$19) -> 5 | C34: =RANK('similarity analysis (direct)'!C12,'similarity analysis (direct)'!C$2:C$17,'similarity analysis (direct)'!C$19) -> 12 | D34: =RANK('similarity analysis (direct)'!D12,'similarity analysis (direct)'!D$2:D$17,'similarity analysis (direct)'!D$19) -> 3 | E34: =RANK('similarity analysis (direct)'!E12,'similarity analysis (direct)'!E$2:E$17,'similarity analysis (direct)'!E$19) -> 9 | F34: =RANK('similarity analysis (direct)'!F12,'similarity analysis (direct)'!F$2:F$17,'similarity analysis (direct)'!F$19) -> 9 | G34: =RANK('similarity analysis (direct)'!G12,'similarity analysis (direct)'!G$2:G$17,'similarity analysis (direct)'!G$19) -> 2 | H34: ='similarity analysis (direct)'!H12 -> 1000
A35: ='similarity analysis (direct)'!A13 -> object_12 | B35: =RANK('similarity analysis (direct)'!B13,'similarity analysis (direct)'!B$2:B$17,'similarity analysis (direct)'!B$19) -> 14 | C35: =RANK('similarity analysis (direct)'!C13,'similarity analysis (direct)'!C$2:C$17,'similarity analysis (direct)'!C$19) -> 16 | D35: =RANK('similarity analysis (direct)'!D13,'similarity analysis (direct)'!D$2:D$17,'similarity analysis (direct)'!D$19) -> 10 | E35: =RANK('similarity analysis (direct)'!E13,'similarity analysis (direct)'!E$2:E$17,'similarity analysis (direct)'!E$19) -> 13 | F35: =RANK('similarity analysis (direct)'!F13,'similarity analysis (direct)'!F$2:F$17,'similarity analysis (direct)'!F$19) -> 14 | G35: =RANK('similarity analysis (direct)'!G13,'similarity analysis (direct)'!G$2:G$17,'similarity analysis (direct)'!G$19) -> 12 | H35: ='similarity analysis (direct)'!H13 -> 1000
A36: ='similarity analysis (direct)'!A14 -> object_13 | B36: =RANK('similarity analysis (direct)'!B14,'similarity analysis (direct)'!B$2:B$17,'similarity analysis (direct)'!B$19) -> 10 | C36: =RANK('similarity analysis (direct)'!C14,'similarity analysis (direct)'!C$2:C$17,'similarity analysis (direct)'!C$19) -> 7 | D36: =RANK('similarity analysis (direct)'!D14,'similarity analysis (direct)'!D$2:D$17,'similarity analysis (direct)'!D$19) -> 4 | E36: =RANK('similarity analysis (direct)'!E14,'similarity analysis (direct)'!E$2:E$17,'similarity analysis (direct)'!E$19) -> 11 | F36: =RANK('similarity analysis (direct)'!F14,'similarity analysis (direct)'!F$2:F$17,'similarity analysis (direct)'!F$19) -> 15 | G36: =RANK('similarity analysis (direct)'!G14,'similarity analysis (direct)'!G$2:G$17,'similarity analysis (direct)'!G$19) -> 9 | H36: ='similarity analysis (direct)'!H14 -> 1000
A37: ='similarity analysis (direct)'!A15 -> object_14 | B37: =RANK('similarity analysis (direct)'!B15,'similarity analysis (direct)'!B$2:B$17,'similarity analysis (direct)'!B$19) -> 7 | C37: =RANK('similarity analysis (direct)'!C15,'similarity analysis (direct)'!C$2:C$17,'similarity analysis (direct)'!C$19) -> 11 | D37: =RANK('similarity analysis (direct)'!D15,'similarity analysis (direct)'!D$2:D$17,'similarity analysis (direct)'!D$19) -> 14 | E37: =RANK('similarity analysis (direct)'!E15,'similarity analysis (direct)'!E$2:E$17,'similarity analysis (direct)'!E$19) -> 15 | F37: =RANK('similarity analysis (direct)'!F15,'similarity analysis (direct)'!F$2:F$17,'similarity analysis (direct)'!F$19) -> 3 | G37: =RANK('similarity analysis (direct)'!G15,'similarity analysis (direct)'!G$2:G$17,'similarity analysis (direct)'!G$19) -> 1 | H37: ='similarity analysis (direct)'!H15 -> 1000
A38: ='similarity analysis (direct)'!A16 -> object_15 | B38: =RANK('similarity analysis (direct)'!B16,'similarity analysis (direct)'!B$2:B$17,'similarity analysis (direct)'!B$19) -> 4 | C38: =RANK('similarity analysis (direct)'!C16,'similarity analysis (direct)'!C$2:C$17,'similarity analysis (direct)'!C$19) -> 9 | D38: =RANK('similarity analysis (direct)'!D16,'similarity analysis (direct)'!D$2:D$17,'similarity analysis (direct)'!D$19) -> 5 | E38: =RANK('similarity analysis (direct)'!E16,'similarity analysis (direct)'!E$2:E$17,'similarity analysis (direct)'!E$19) -> 14 | F38: =RANK('similarity analysis (direct)'!F16,'similarity analysis (direct)'!F$2:F$17,'similarity analysis (direct)'!F$19) -> 5 | G38: =RANK('similarity analysis (direct)'!G16,'similarity analysis (direct)'!G$2:G$17,'similarity analysis (direct)'!G$19) -> 11 | H38: ='similarity analysis (direct)'!H16 -> 1000
A39: ='similarity analysis (direct)'!A17 -> object_16 | B39: =RANK('similarity analysis (direct)'!B17,'similarity analysis (direct)'!B$2:B$17,'similarity analysis (direct)'!B$19) -> 16 | C39: =RANK('similarity analysis (direct)'!C17,'similarity analysis (direct)'!C$2:C$17,'similarity analysis (direct)'!C$19) -> 3 | D39: =RANK('similarity analysis (direct)'!D17,'similarity analysis (direct)'!D$2:D$17,'similarity analysis (direct)'!D$19) -> 15 | E39: =RANK('similarity analysis (direct)'!E17,'similarity analysis (direct)'!E$2:E$17,'similarity analysis (direct)'!E$19) -> 11 | F39: =RANK('similarity analysis (direct)'!F17,'similarity analysis (direct)'!F$2:F$17,'similarity analysis (direct)'!F$19) -> 5 | G39: =RANK('similarity analysis (direct)'!G17,'similarity analysis (direct)'!G$2:G$17,'similarity analysis (direct)'!G$19) -> 5 | H39: ='similarity analysis (direct)'!H17 -> 1000
A41: max | B41: =MAX(B24:B39) -> 16 | C41: 16 | D41: 16 | E41: 16 | F41: 16 | G41: 16
A42: min | B42: =MIN(B24:B39) -> 1 | C42: 1 | D42: 1 | E42: 1 | F42: 1 | G42: 1
A45: staircase function | B45: id | C45: ='similarity analysis (direct)'!B23 -> attribute_1 | D45: ='similarity analysis (direct)'!C23 -> attribute_2 | E45: ='similarity analysis (direct)'!D23 -> attribute_3 | F45: ='similarity analysis (direct)'!E23 -> attribute_4 | G45: ='similarity analysis (direct)'!F23 -> attribute_5 | H45: ='similarity analysis (direct)'!G23 -> attribute_6 | J45: differences | K45: =C45 -> attribute_1 | L45: attribute_2 | M45: attribute_3 | N45: attribute_4 | O45: attribute_5 | P45: attribute_6
A46: stair level_1 (S1) | B46: 1 | C46: 168.0078911 | D46: 179.8640996 | E46: 252.8568822 | F46: 165.721479 | G46: 187.4109668 | H46: 253.5863395 | J46: S1-S2 | K46: =C46-C47 -> 1 | L46: =D46-D47 -> 1 | M46: =E46-E47 -> 86.14623684 | N46: =F46-F47 -> 1 | O46: =G46-G47 -> 1 | P46: =H46-H47 -> 78.91680633
A47: stair level_2 | B47: 2 | C47: 167.0078911 | D47: 178.8640996 | E47: 166.7106454 | F47: 164.721479 | G47: 186.4109668 | H47: 174.6695332 | J47: … | K47: 1 | L47: 1 | M47: 1 | N47: 1 | O47: 1 | P47: 1
A48: stair level_3 | B48: 3 | C48: 166.0078911 | D48: 177.8640996 | E48: 165.7106454 | F48: 163.721479 | G48: 185.4109668 | H48: 173.6695332 | J48: … | K48: 1 | L48: 1 | M48: 1 | N48: 1 | O48: 1 | P48: 1
A49: stair level_4 | B49: 4 | C49: 165.0078911 | D49: 176.8640996 | E49: 164.7106454 | F49: 162.721479 | G49: 184.4109668 | H49: 172.6695332 | J49: … | K49: 1 | L49: 1 | M49: 1 | N49: 1 | O49: 1 | P49: 1
A50: stair level_5 | B50: 5 | C50: 164.0078911 | D50: 175.8640996 | E50: 163.7106454 | F50: 161.721479 | G50: 183.4109668 | H50: 171.6695332 | J50: … | K50: 1 | L50: 1 | M50: 1 | N50: 1 | O50: 1 | P50: 1
A51: stair level_6 | B51: 6 | C51: 163.0078911 | D51: 174.8640996 | E51: 162.7106454 | F51: 160.721479 | G51: 182.4109668 | H51: 170.6695332 | J51: … | K51: 1 | L51: 1 | M51: 1 | N51: 1 | O51: 1 | P51: 1
A52: stair level_7 | B52: 7 | C52: 162.0078911 | D52: 173.8640996 | E52: 161.7106454 | F52: 159.721479 | G52: 181.4109668 | H52: 169.6695332 | J52: … | K52: 1 | L52: 1 | M52: 1 | N52: 1 | O52: 1 | P52: 1
A53: stair level_8 | B53: 8 | C53: 161.0078911 | D53: 172.8640996 | E53: 160.7106454 | F53: 158.721479 | G53: 180.4109668 | H53: 168.6695332 | J53: … | K53: 1 | L53: 1 | M53: 1 | N53: 1 | O53: 1 | P53: 1
A54: stair level_9 | B54: 9 | C54: 160.0078911 | D54: 171.8640996 | E54: 159.7106454 | F54: 157.721479 | G54: 179.4109668 | H54: 167.6695332 | J54: … | K54: 1 | L54: 1 | M54: 1 | N54: 1 | O54: 1 | P54: 1
A55: stair level_10 | B55: 10 | C55: 159.0078911 | D55: 170.8640996 | E55: 158.7106454 | F55: 156.721479 | G55: 178.4109668 | H55: 166.6695332 | J55: … | K55: 1 | L55: 1 | M55: 1 | N55: 1 | O55: 1 | P55: 1
A56: stair level_11 | B56: 11 | C56: 158.0078911 | D56: 169.8640996 | E56: 157.7106454 | F56: 155.721479 | G56: 177.4109668 | H56: 165.6695332 | J56: … | K56: 1 | L56: 1 | M56: 1 | N56: 1 | O56: 1 | P56: 1
A57: stair level_12 | B57: 12 | C57: 157.0078911 | D57: 168.8640996 | E57: 156.7106454 | F57: 154.721479 | G57: 176.4109668 | H57: 164.6695332 | J57: … | K57: 1 | L57: 1 | M57: 1 | N57: 1 | O57: 1 | P57: 1
A58: stair level_13 | B58: 13 | C58: 156.0078911 | D58: 167.8640996 | E58: 155.7106454 | F58: 153.721479 | G58: 175.4109668 | H58: 163.6695332 | J58: … | K58: 1 | L58: 1 | M58: 1 | N58: 3.384615495 | O58: 1 | P58: 1
A59: stair level_14 | B59: 14 | C59: 155.0078911 | D59: 166.8640996 | E59: 154.7106454 | F59: 150.3368635 | G59: 174.4109668 | H59: 162.6695332 | J59: … | K59: 1 | L59: 1 | M59: 1 | N59: 75.91680595 | O59: 1 | P59: 1
A60: stair level_15 | B60: 15 | C60: 154.0078911 | D60: 165.8640996 | E60: 153.7106454 | F60: 74.42005753 | G60: 173.4109668 | H60: 161.6695332 | J60: S15-S16 | K60: 1 | L60: 1 | M60: 1 | N60: 13.22943077 | O60: 1 | P60: 1
A61: stair level_16 (S16) | B61: 16 | C61: 153.0078911 | D61: 164.8640996 | E61: 152.7106454 | F61: 61.19062677 | G61: 172.4109668 | H61: 160.6695332
I63: direct | L63: indirect
A64: ='similarity analysis (direct)'!A23 -> OAM | B64: ='similarity analysis (direct)'!B23 -> attribute_1 | C64: ='similarity analysis (direct)'!C23 -> attribute_2 | D64: ='similarity analysis (direct)'!D23 -> attribute_3 | E64: ='similarity analysis (direct)'!E23 -> attribute_4 | F64: ='similarity analysis (direct)'!F23 -> attribute_5 | G64: ='similarity analysis (direct)'!G23 -> attribute_6 | H64: ='similarity analysis (direct)'!H23 -> Y0 | I64: estimation | J64: difference | K64: validation | L64: =I64 -> estimation | M64: remarks
A65: ='similarity analysis (direct)'!A24 -> object_1 | B65: =VLOOKUP('similarity analysis (direct)'!B24,'similarity analysis (direct)'!$B$46:$H$61,'similarity analysis (direct)'!B$81,0) -> 160.0078911 | C65: =VLOOKUP('similarity analysis (direct)'!C24,'similarity analysis (direct)'!$B$46:$H$61,'similarity analysis (direct)'!C$81,0) -> 178.8640996 | D65: =VLOOKUP('similarity analysis (direct)'!D24,'similarity analysis (direct)'!$B$46:$H$61,'similarity analysis (direct)'!D$81,0) -> 155.7106454 | E65: =VLOOKUP('similarity analysis (direct)'!E24,'similarity analysis (direct)'!$B$46:$H$61,'similarity analysis (direct)'!E$81,0) -> 165.721479 | F65: =VLOOKUP('similarity analysis (direct)'!F24,'similarity analysis (direct)'!$B$46:$H$61,'similarity analysis (direct)'!F$81,0) -> 177.4109668 | G65: =VLOOKUP('similarity analysis (direct)'!G24,'similarity analysis (direct)'!$B$46:$H$61,'similarity analysis (direct)'!G$81,0) -> 162.6695332 | H65: ='similarity analysis (direct)'!H24 -> 1000 | I65: =SUM(B65:G65) -> 1000.384615 | J65: =H65-I65 -> -0.3846150792 | K65: =IF(J65*'similarity analysis (indirect)'!J65<=0,"valid","invalid") -> valid | L65: ='similarity analysis (indirect)'!I65 -> 999.6922818
A66: ='similarity analysis (direct)'!A25 -> object_2 | B66: =VLOOKUP('similarity analysis (direct)'!B25,'similarity analysis (direct)'!$B$46:$H$61,'similarity analysis (direct)'!B$81,0) -> 154.0078911 | C66: =VLOOKUP('similarity analysis (direct)'!C25,'similarity analysis (direct)'!$B$46:$H$61,'similarity analysis (direct)'!C$81,0) -> 175.8640996 | D66: =VLOOKUP('similarity analysis (direct)'!D25,'similarity analysis (direct)'!$B$46:$H$61,'similarity analysis (direct)'!D$81,0) -> 163.7106454 | E66: =VLOOKUP('similarity analysis (direct)'!E25,'similarity analysis (direct)'!$B$46:$H$61,'similarity analysis (direct)'!E$81,0) -> 160.721479 | F66: =VLOOKUP('similarity analysis (direct)'!F25,'similarity analysis (direct)'!$B$46:$H$61,'similarity analysis (direct)'!F$81,0) -> 177.4109668 | G66: =VLOOKUP('similarity analysis (direct)'!G25,'similarity analysis (direct)'!$B$46:$H$61,'similarity analysis (direct)'!G$81,0) -> 163.6695332 | H66: ='similarity analysis (direct)'!H25 -> 1000 | I66: 995.3846151 | J66: 4.615384921 | K66: =IF(J66*'similarity analysis (indirect)'!J66<=0,"valid","invalid") -> valid | L66: ='similarity analysis (indirect)'!I66 -> 1005.692282
A67: ='similarity analysis (direct)'!A26 -> object_3 | B67: =VLOOKUP('similarity analysis (direct)'!B26,'similarity analysis (direct)'!$B$46:$H$61,'similarity analysis (direct)'!B$81,0) -> 161.0078911 | C67: =VLOOKUP('similarity analysis (direct)'!C26,'similarity analysis (direct)'!$B$46:$H$61,'similarity analysis (direct)'!C$81,0) -> 179.8640996 | D67: =VLOOKUP('similarity analysis (direct)'!D26,'similarity analysis (direct)'!$B$46:$H$61,'similarity analysis (direct)'!D$81,0) -> 156.7106454 | E67: =VLOOKUP('similarity analysis (direct)'!E26,'similarity analysis (direct)'!$B$46:$H$61,'similarity analysis (direct)'!E$81,0) -> 158.721479 | F67: =VLOOKUP('similarity analysis (direct)'!F26,'similarity analysis (direct)'!$B$46:$H$61,'similarity analysis (direct)'!F$81,0) -> 183.4109668 | G67: =VLOOKUP('similarity analysis (direct)'!G26,'similarity analysis (direct)'!$B$46:$H$61,'similarity analysis (direct)'!G$81,0) -> 172.6695332 | H67: ='similarity analysis (direct)'!H26 -> 1000 | I67: 1012.384615 | J67: -12.38461508 | K67: =IF(J67*'similarity analysis (indirect)'!J67<=0,"valid","invalid") -> valid | L67: ='similarity analysis (indirect)'!I67 -> 988.6922818
A68: ='similarity analysis (direct)'!A27 -> object_4 | B68: =VLOOKUP('similarity analysis (direct)'!B27,'similarity analysis (direct)'!$B$46:$H$61,'similarity analysis (direct)'!B$81,0) -> 168.0078911 | C68: =VLOOKUP('similarity analysis (direct)'!C27,'similarity analysis (direct)'!$B$46:$H$61,'similarity analysis (direct)'!C$81,0) -> 167.8640996 | D68: =VLOOKUP('similarity analysis (direct)'!D27,'similarity analysis (direct)'!$B$46:$H$61,'similarity analysis (direct)'!D$81,0) -> 252.8568822 | E68: =VLOOKUP('similarity analysis (direct)'!E27,'similarity analysis (direct)'!$B$46:$H$61,'similarity analysis (direct)'!E$81,0) -> 61.19062677 | F68: =VLOOKUP('similarity analysis (direct)'!F27,'similarity analysis (direct)'!$B$46:$H$61,'similarity analysis (direct)'!F$81,0) -> 178.4109668 | G68: =VLOOKUP('similarity analysis (direct)'!G27,'similarity analysis (direct)'!$B$46:$H$61,'similarity analysis (direct)'!G$81,0) -> 171.6695332 | H68: ='similarity analysis (direct)'!H27 -> 1000 | I68: 999.9999997 | J68: 2.974667268e-07 | K68: =IF(J68*'similarity analysis (indirect)'!J68<=0,"valid","invalid") -> invalid | L68: ='similarity analysis (indirect)'!I68 -> 999.9999092 | M68: <--rounding-error
A69: ='similarity analysis (direct)'!A28 -> object_5 | B69: =VLOOKUP('similarity analysis (direct)'!B28,'similarity analysis (direct)'!$B$46:$H$61,'similarity analysis (direct)'!B$81,0) -> 158.0078911 | C69: =VLOOKUP('similarity analysis (direct)'!C28,'similarity analysis (direct)'!$B$46:$H$61,'similarity analysis (direct)'!C$81,0) -> 165.8640996 | D69: =VLOOKUP('similarity analysis (direct)'!D28,'similarity analysis (direct)'!$B$46:$H$61,'similarity analysis (direct)'!D$81,0) -> 159.7106454 | E69: =VLOOKUP('similarity analysis (direct)'!E28,'similarity analysis (direct)'!$B$46:$H$61,'similarity analysis (direct)'!E$81,0) -> 163.721479 | F69: =VLOOKUP('similarity analysis (direct)'!F28,'similarity analysis (direct)'!$B$46:$H$61,'similarity analysis (direct)'!F$81,0) -> 187.4109668 | G69: =VLOOKUP('similarity analysis (direct)'!G28,'similarity analysis (direct)'!$B$46:$H$61,'similarity analysis (direct)'!G$81,0) -> 173.6695332 | H69: ='similarity analysis (direct)'!H28 -> 1000 | I69: 1008.384615 | J69: -8.384615079 | K69: =IF(J69*'similarity analysis (indirect)'!J69<=0,"valid","invalid") -> valid | L69: ='similarity analysis (indirect)'!I69 -> 989.6922818
A70: ='similarity analysis (direct)'!A29 -> object_6 | B70: =VLOOKUP('similarity analysis (direct)'!B29,'similarity analysis (direct)'!$B$46:$H$61,'similarity analysis (direct)'!B$81,0) -> 166.0078911 | C70: =VLOOKUP('similarity analysis (direct)'!C29,'similarity analysis (direct)'!$B$46:$H$61,'similarity analysis (direct)'!C$81,0) -> 167.8640996 | D70: =VLOOKUP('similarity analysis (direct)'!D29,'similarity analysis (direct)'!$B$46:$H$61,'similarity analysis (direct)'!D$81,0) -> 161.7106454 | E70: =VLOOKUP('similarity analysis (direct)'!E29,'similarity analysis (direct)'!$B$46:$H$61,'similarity analysis (direct)'!E$81,0) -> 162.721479 | F70: =VLOOKUP('similarity analysis (direct)'!F29,'similarity analysis (direct)'!$B$46:$H$61,'similarity analysis (direct)'!F$81,0) -> 172.4109668 | G70: =VLOOKUP('similarity analysis (direct)'!G29,'similarity analysis (direct)'!$B$46:$H$61,'similarity analysis (direct)'!G$81,0) -> 160.6695332 | H70: ='similarity analysis (direct)'!H29 -> 1000 | I70: 991.3846151 | J70: 8.615384921 | K70: =IF(J70*'similarity analysis (indirect)'!J70<=0,"valid","invalid") -> valid | L70: ='similarity analysis (indirect)'!I70 -> 1007.692282
A71: ='similarity analysis (direct)'!A30 -> object_7 | B71: =VLOOKUP('similarity analysis (direct)'!B30,'similarity analysis (direct)'!$B$46:$H$61,'similarity analysis (direct)'!B$81,0) -> 156.0078911 | C71: =VLOOKUP('similarity analysis (direct)'!C30,'similarity analysis (direct)'!$B$46:$H$61,'similarity analysis (direct)'!C$81,0) -> 177.8640996 | D71: =VLOOKUP('similarity analysis (direct)'!D30,'similarity analysis (direct)'!$B$46:$H$61,'similarity analysis (direct)'!D$81,0) -> 160.7106454 | E71: =VLOOKUP('similarity analysis (direct)'!E30,'similarity analysis (direct)'!$B$46:$H$61,'similarity analysis (direct)'!E$81,0) -> 156.721479 | F71: =VLOOKUP('similarity analysis (direct)'!F30,'similarity analysis (direct)'!$B$46:$H$61,'similarity analysis (direct)'!F$81,0) -> 186.4109668 | G71: =VLOOKUP('similarity analysis (direct)'!G30,'similarity analysis (direct)'!$B$46:$H$61,'similarity analysis (direct)'!G$81,0) -> 169.6695332 | H71: ='similarity analysis (direct)'!H30 -> 1000 | I71: 1007.384615 | J71: -7.384615079 | K71: =IF(J71*'similarity analysis (indirect)'!J71<=0,"valid","invalid") -> valid | L71: ='similarity analysis (indirect)'!I71 -> 992.6922818
A72: ='similarity analysis (direct)'!A31 -> object_8 | B72: =VLOOKUP('similarity analysis (direct)'!B31,'similarity analysis (direct)'!$B$46:$H$61,'similarity analysis (direct)'!B$81,0) -> 157.0078911 | C72: =VLOOKUP('similarity analysis (direct)'!C31,'similarity analysis (direct)'!$B$46:$H$61,'similarity analysis (direct)'!C$81,0) -> 172.8640996 | D72: =VLOOKUP('similarity analysis (direct)'!D31,'similarity analysis (direct)'!$B$46:$H$61,'similarity analysis (direct)'!D$81,0) -> 152.7106454 | E72: =VLOOKUP('similarity analysis (direct)'!E31,'similarity analysis (direct)'!$B$46:$H$61,'similarity analysis (direct)'!E$81,0) -> 161.721479 | F72: =VLOOKUP('similarity analysis (direct)'!F31,'similarity analysis (direct)'!$B$46:$H$61,'similarity analysis (direct)'!F$81,0) -> 175.4109668 | G72: =VLOOKUP('similarity analysis (direct)'!G31,'similarity analysis (direct)'!$B$46:$H$61,'similarity analysis (direct)'!G$81,0) -> 161.6695332 | H72: ='similarity analysis (direct)'!H31 -> 1000 | I72: 981.3846151 | J72: 18.61538492 | K72: =IF(J72*'similarity analysis (indirect)'!J72<=0,"valid","invalid") -> valid | L72: ='similarity analysis (indirect)'!I72 -> 1016.692282
A73: ='similarity analysis (direct)'!A32 -> object_9 | B73: =VLOOKUP('similarity analysis (direct)'!B32,'similarity analysis (direct)'!$B$46:$H$61,'similarity analysis (direct)'!B$81,0) -> 163.0078911 | C73: =VLOOKUP('similarity analysis (direct)'!C32,'similarity analysis (direct)'!$B$46:$H$61,'similarity analysis (direct)'!C$81,0) -> 170.8640996 | D73: =VLOOKUP('similarity analysis (direct)'!D32,'similarity analysis (direct)'!$B$46:$H$61,'similarity analysis (direct)'!D$81,0) -> 157.7106454 | E73: =VLOOKUP('similarity analysis (direct)'!E32,'similarity analysis (direct)'!$B$46:$H$61,'similarity analysis (direct)'!E$81,0) -> 160.721479 | F73: =VLOOKUP('similarity analysis (direct)'!F32,'similarity analysis (direct)'!$B$46:$H$61,'similarity analysis (direct)'!F$81,0) -> 183.4109668 | G73: =VLOOKUP('similarity analysis (direct)'!G32,'similarity analysis (direct)'!$B$46:$H$61,'similarity analysis (direct)'!G$81,0) -> 166.6695332 | H73: ='similarity analysis (direct)'!H32 -> 1000 | I73: 1002.384615 | J73: -2.384615079 | K73: =IF(J73*'similarity analysis (indirect)'!J73<=0,"valid","invalid") -> valid | L73: ='similarity analysis (indirect)'!I73 -> 999.6922818
A74: ='similarity analysis (direct)'!A33 -> object_10 | B74: =VLOOKUP('similarity analysis (direct)'!B33,'similarity analysis (direct)'!$B$46:$H$61,'similarity analysis (direct)'!B$81,0) -> 168.0078911 | C74: =VLOOKUP('similarity analysis (direct)'!C33,'similarity analysis (direct)'!$B$46:$H$61,'similarity analysis (direct)'!C$81,0) -> 174.8640996 | D74: =VLOOKUP('similarity analysis (direct)'!D33,'similarity analysis (direct)'!$B$46:$H$61,'similarity analysis (direct)'!D$81,0) -> 166.7106454 | E74: =VLOOKUP('similarity analysis (direct)'!E33,'similarity analysis (direct)'!$B$46:$H$61,'similarity analysis (direct)'!E$81,0) -> 165.721479 | F74: =VLOOKUP('similarity analysis (direct)'!F33,'similarity analysis (direct)'!$B$46:$H$61,'similarity analysis (direct)'!F$81,0) -> 184.4109668 | G74: =VLOOKUP('similarity analysis (direct)'!G33,'similarity analysis (direct)'!$B$46:$H$61,'similarity analysis (direct)'!G$81,0) -> 169.6695332 | H74: ='similarity analysis (direct)'!H33 -> 1000 | I74: 1029.384615 | J74: -29.38461508 | K74: =IF(J74*'similarity analysis (indirect)'!J74<=0,"valid","invalid") -> valid | L74: ='similarity analysis (indirect)'!I74 -> 971.6922818
A75: ='similarity analysis (direct)'!A34 -> object_11 | B75: =VLOOKUP('similarity analysis (direct)'!B34,'similarity analysis (direct)'!$B$46:$H$61,'similarity analysis (direct)'!B$81,0) -> 164.0078911 | C75: =VLOOKUP('similarity analysis (direct)'!C34,'similarity analysis (direct)'!$B$46:$H$61,'similarity analysis (direct)'!C$81,0) -> 168.8640996 | D75: =VLOOKUP('similarity analysis (direct)'!D34,'similarity analysis (direct)'!$B$46:$H$61,'similarity analysis (direct)'!D$81,0) -> 165.7106454 | E75: =VLOOKUP('similarity analysis (direct)'!E34,'similarity analysis (direct)'!$B$46:$H$61,'similarity analysis (direct)'!E$81,0) -> 157.721479 | F75: =VLOOKUP('similarity analysis (direct)'!F34,'similarity analysis (direct)'!$B$46:$H$61,'similarity analysis (direct)'!F$81,0) -> 179.4109668 | G75: =VLOOKUP('similarity analysis (direct)'!G34,'similarity analysis (direct)'!$B$46:$H$61,'similarity analysis (direct)'!G$81,0) -> 174.6695332 | H75: ='similarity analysis (direct)'!H34 -> 1000 | I75: 1010.384615 | J75: -10.38461508 | K75: =IF(J75*'similarity analysis (indirect)'!J75<=0,"valid","invalid") -> valid | L75: ='similarity analysis (indirect)'!I75 -> 987.6922817
A76: ='similarity analysis (direct)'!A35 -> object_12 | B76: =VLOOKUP('similarity analysis (direct)'!B35,'similarity analysis (direct)'!$B$46:$H$61,'similarity analysis (direct)'!B$81,0) -> 155.0078911 | C76: =VLOOKUP('similarity analysis (direct)'!C35,'similarity analysis (direct)'!$B$46:$H$61,'similarity analysis (direct)'!C$81,0) -> 164.8640996 | D76: =VLOOKUP('similarity analysis (direct)'!D35,'similarity analysis (direct)'!$B$46:$H$61,'similarity analysis (direct)'!D$81,0) -> 158.7106454 | E76: =VLOOKUP('similarity analysis (direct)'!E35,'similarity analysis (direct)'!$B$46:$H$61,'similarity analysis (direct)'!E$81,0) -> 153.721479 | F76: =VLOOKUP('similarity analysis (direct)'!F35,'similarity analysis (direct)'!$B$46:$H$61,'similarity analysis (direct)'!F$81,0) -> 174.4109668 | G76: =VLOOKUP('similarity analysis (direct)'!G35,'similarity analysis (direct)'!$B$46:$H$61,'similarity analysis (direct)'!G$81,0) -> 164.6695332 | H76: ='similarity analysis (direct)'!H35 -> 1000 | I76: 971.3846151 | J76: 28.61538492 | K76: =IF(J76*'similarity analysis (indirect)'!J76<=0,"valid","invalid") -> valid | L76: ='similarity analysis (indirect)'!I76 -> 1026.692282
A77: ='similarity analysis (direct)'!A36 -> object_13 | B77: =VLOOKUP('similarity analysis (direct)'!B36,'similarity analysis (direct)'!$B$46:$H$61,'similarity analysis (direct)'!B$81,0) -> 159.0078911 | C77: =VLOOKUP('similarity analysis (direct)'!C36,'similarity analysis (direct)'!$B$46:$H$61,'similarity analysis (direct)'!C$81,0) -> 173.8640996 | D77: =VLOOKUP('similarity analysis (direct)'!D36,'similarity analysis (direct)'!$B$46:$H$61,'similarity analysis (direct)'!D$81,0) -> 164.7106454 | E77: =VLOOKUP('similarity analysis (direct)'!E36,'similarity analysis (direct)'!$B$46:$H$61,'similarity analysis (direct)'!E$81,0) -> 155.721479 | F77: =VLOOKUP('similarity analysis (direct)'!F36,'similarity analysis (direct)'!$B$46:$H$61,'similarity analysis (direct)'!F$81,0) -> 173.4109668 | G77: =VLOOKUP('similarity analysis (direct)'!G36,'similarity analysis (direct)'!$B$46:$H$61,'similarity analysis (direct)'!G$81,0) -> 167.6695332 | H77: ='similarity analysis (direct)'!H36 -> 1000 | I77: 994.3846151 | J77: 5.615384921 | K77: =IF(J77*'similarity analysis (indirect)'!J77<=0,"valid","invalid") -> valid | L77: ='similarity analysis (indirect)'!I77 -> 1004.692282
A78: ='similarity analysis (direct)'!A37 -> object_14 | B78: =VLOOKUP('similarity analysis (direct)'!B37,'similarity analysis (direct)'!$B$46:$H$61,'similarity analysis (direct)'!B$81,0) -> 162.0078911 | C78: =VLOOKUP('similarity analysis (direct)'!C37,'similarity analysis (direct)'!$B$46:$H$61,'similarity analysis (direct)'!C$81,0) -> 169.8640996 | D78: =VLOOKUP('similarity analysis (direct)'!D37,'similarity analysis (direct)'!$B$46:$H$61,'similarity analysis (direct)'!D$81,0) -> 154.7106454 | E78: =VLOOKUP('similarity analysis (direct)'!E37,'similarity analysis (direct)'!$B$46:$H$61,'similarity analysis (direct)'!E$81,0) -> 74.42005753 | F78: =VLOOKUP('similarity analysis (direct)'!F37,'similarity analysis (direct)'!$B$46:$H$61,'similarity analysis (direct)'!F$81,0) -> 185.4109668 | G78: =VLOOKUP('similarity analysis (direct)'!G37,'similarity analysis (direct)'!$B$46:$H$61,'similarity analysis (direct)'!G$81,0) -> 253.5863395 | H78: ='similarity analysis (direct)'!H37 -> 1000 | I78: 1000 | J78: 4.483831617e-08 | K78: =IF(J78*'similarity analysis (indirect)'!J78<=0,"valid","invalid") -> invalid | L78: ='similarity analysis (indirect)'!I78 -> 999.9999189 | M78: <--rounding-error
A79: ='similarity analysis (direct)'!A38 -> object_15 | B79: =VLOOKUP('similarity analysis (direct)'!B38,'similarity analysis (direct)'!$B$46:$H$61,'similarity analysis (direct)'!B$81,0) -> 165.0078911 | C79: =VLOOKUP('similarity analysis (direct)'!C38,'similarity analysis (direct)'!$B$46:$H$61,'similarity analysis (direct)'!C$81,0) -> 171.8640996 | D79: =VLOOKUP('similarity analysis (direct)'!D38,'similarity analysis (direct)'!$B$46:$H$61,'similarity analysis (direct)'!D$81,0) -> 163.7106454 | E79: =VLOOKUP('similarity analysis (direct)'!E38,'similarity analysis (direct)'!$B$46:$H$61,'similarity analysis (direct)'!E$81,0) -> 150.3368635 | F79: =VLOOKUP('similarity analysis (direct)'!F38,'similarity analysis (direct)'!$B$46:$H$61,'similarity analysis (direct)'!F$81,0) -> 183.4109668 | G79: =VLOOKUP('similarity analysis (direct)'!G38,'similarity analysis (direct)'!$B$46:$H$61,'similarity analysis (direct)'!G$81,0) -> 165.6695332 | H79: ='similarity analysis (direct)'!H38 -> 1000 | I79: 999.9999996 | J79: 4.157793683e-07 | K79: =IF(J79*'similarity analysis (indirect)'!J79<=0,"valid","invalid") -> invalid | L79: ='similarity analysis (indirect)'!I79 -> 999.9999256 | M79: <--rounding-error
A80: ='similarity analysis (direct)'!A39 -> object_16 | B80: =VLOOKUP('similarity analysis (direct)'!B39,'similarity analysis (direct)'!$B$46:$H$61,'similarity analysis (direct)'!B$81,0) -> 153.0078911 | C80: =VLOOKUP('similarity analysis (direct)'!C39,'similarity analysis (direct)'!$B$46:$H$61,'similarity analysis (direct)'!C$81,0) -> 177.8640996 | D80: =VLOOKUP('similarity analysis (direct)'!D39,'similarity analysis (direct)'!$B$46:$H$61,'similarity analysis (direct)'!D$81,0) -> 153.7106454 | E80: =VLOOKUP('similarity analysis (direct)'!E39,'similarity analysis (direct)'!$B$46:$H$61,'similarity analysis (direct)'!E$81,0) -> 155.721479 | F80: =VLOOKUP('similarity analysis (direct)'!F39,'similarity analysis (direct)'!$B$46:$H$61,'similarity analysis (direct)'!F$81,0) -> 183.4109668 | G80: =VLOOKUP('similarity analysis (direct)'!G39,'similarity analysis (direct)'!$B$46:$H$61,'similarity analysis (direct)'!G$81,0) -> 171.6695332 | H80: ='similarity analysis (direct)'!H39 -> 1000 | I80: 995.3846151 | J80: 4.615384921 | K80: =IF(J80*'similarity analysis (indirect)'!J80<=0,"valid","invalid") -> valid | L80: ='similarity analysis (indirect)'!I80 -> 1008.692282
A81: id | B81: 2 | C81: 3 | D81: 4 | E81: 5 | F81: 6 | G81: 7
I82: error level | J82: =SUMSQ(J65:J80) -> 2569.076923

Sheet similarity analysis (indirect)
A1: OAM | B1: attribute_1 | C1: attribute_2 | D1: attribute_3 | E1: attribute_4 | F1: attribute_5 | G1: attribute_6 | H1: Y0 | I1: naive average | J1: naive ranks | K1: optimized ranks | L1: abs differences | N1: Case study
A2: object_1 | B2: 76 | C2: 92 | D2: 72 | E2: 95 | F2: 78 | G2: 57 | H2: 1000 | I2: =AVERAGE(B2:G2) -> 78.33333333 | J2: =RANK(I2,I$2:I$17,0) -> 7 | K2: =RANK(I65,I$65:I$80,0) -> 10 | L2: =ABS(J2-K2) -> 3 | N2: objects | O2: = | P2: Students
A3: object_2 | B3: 60 | C3: 85 | D3: 91 | E3: 82 | F3: 78 | G3: 72 | H3: 1000 | I3: =AVERAGE(B3:G3) -> 78 | J3: =RANK(I3,I$2:I$17,0) -> 9 | K3: =RANK(I66,I$65:I$80,0) -> 5 | L3: =ABS(J3-K3) -> 4 | N3: attributes | O3: = | P3: Performances
A4: object_3 | B4: 79 | C4: 99 | D4: 74 | E4: 78 | F4: 87 | G4: 88 | H4: 1000 | I4: 84.16666667 | J4: 2 | K4: 14 | L4: 12 | N4: question | O4: = | P4: Could each Student have the same evaluation value? (anti-discriminative modelling)
A5: object_4 | B5: 93 | C5: 56 | D5: 99 | E5: 53 | F5: 82 | G5: 87 | H5: 1000 | I5: 78.33333333 | J5: 7 | K5: 9 | L5: 2
A6: object_5 | B6: 68 | C6: 55 | D6: 83 | E6: 93 | F6: 100 | G6: 90 | H6: 1000 | I6: 81.5 | J6: 5 | K6: 13 | L6: 8
A7: object_6 | B7: 91 | C7: 56 | D7: 90 | E7: 90 | F7: 53 | G7: 51 | H7: 1000 | I7: 71.83333333 | J7: 14 | K7: 4 | L7: 10
A8: object_7 | B8: 63 | C8: 91 | D8: 84 | E8: 73 | F8: 99 | G8: 85 | H8: 1000 | I8: 82.5 | J8: 3 | K8: 12 | L8: 9
A9: object_8 | B9: 64 | C9: 74 | D9: 57 | E9: 87 | F9: 74 | G9: 56 | H9: 1000 | I9: 68.66666667 | J9: 15 | K9: 2 | L9: 13
A10: object_9 | B10: 86 | C10: 64 | D10: 76 | E10: 82 | F10: 87 | G10: 78 | H10: 1000 | I10: 78.83333333 | J10: 6 | K10: 11 | L10: 5
A11: object_10 | B11: 93 | C11: 83 | D11: 98 | E11: 95 | F11: 88 | G11: 85 | H11: 1000 | I11: 90.33333333 | J11: 1 | K11: 16 | L11: 15
A12: object_11 | B12: 87 | C12: 57 | D12: 95 | E12: 75 | F12: 85 | G12: 93 | H12: 1000 | I12: 82 | J12: 4 | K12: 15 | L12: 11
A13: object_12 | B13: 62 | C13: 54 | D13: 77 | E13: 69 | F13: 62 | G13: 73 | H13: 1000 | I13: 66.16666667 | J13: 16 | K13: 1 | L13: 15
A14: object_13 | B14: 75 | C14: 81 | D14: 93 | E14: 70 | F14: 59 | G14: 79 | H14: 1000 | I14: 76.16666667 | J14: 11 | K14: 6 | L14: 5
A15: object_14 | B15: 85 | C15: 58 | D15: 61 | E15: 54 | F15: 95 | G15: 96 | H15: 1000 | I15: 74.83333333 | J15: 12 | K15: 8 | L15: 4
A16: object_15 | B16: 88 | C16: 66 | D16: 91 | E16: 58 | F16: 87 | G16: 75 | H16: 1000 | I16: 77.5 | J16: 10 | K16: 7 | L16: 3
A17: object_16 | B17: 53 | C17: 91 | D17: 58 | E17: 70 | F17: 87 | G17: 87 | H17: 1000 | I17: 74.33333333 | J17: 13 | K17: 3 | L17: 10
A19: direction | B19: 1 | C19: 1 | D19: 1 | E19: 1 | F19: 1 | G19: 1
A20: meaning | B20: the more a(i) the more Y | C20: the more a(i) the more Y | D20: the more a(i) the more Y | E20: the more a(i) the more Y | F20: the more a(i) the more Y | G20: the more a(i) the more Y | H20: constant value
A23: ='similarity analysis (indirect)'!A1 -> OAM | B23: ='similarity analysis (indirect)'!B1 -> attribute_1 | C23: ='similarity analysis (indirect)'!C1 -> attribute_2 | D23: ='similarity analysis (indirect)'!D1 -> attribute_3 | E23: ='similarity analysis (indirect)'!E1 -> attribute_4 | F23: ='similarity analysis (indirect)'!F1 -> attribute_5 | G23: ='similarity analysis (indirect)'!G1 -> attribute_6 | H23: ='similarity analysis (indirect)'!H1 -> Y0
A24: ='similarity analysis (indirect)'!A2 -> object_1 | B24: =RANK('similarity analysis (indirect)'!B2,'similarity analysis (indirect)'!B$2:B$17,'similarity analysis (indirect)'!B$19) -> 8 | C24: =RANK('similarity analysis (indirect)'!C2,'similarity analysis (indirect)'!C$2:C$17,'similarity analysis (indirect)'!C$19) -> 15 | D24: =RANK('similarity analysis (indirect)'!D2,'similarity analysis (indirect)'!D$2:D$17,'similarity analysis (indirect)'!D$19) -> 4 | E24: =RANK('similarity analysis (indirect)'!E2,'similarity analysis (indirect)'!E$2:E$17,'similarity analysis (indirect)'!E$19) -> 15 | F24: =RANK('similarity analysis (indirect)'!F2,'similarity analysis (indirect)'!F$2:F$17,'similarity analysis (indirect)'!F$19) -> 5 | G24: =RANK('similarity analysis (indirect)'!G2,'similarity analysis (indirect)'!G$2:G$17,'similarity analysis (indirect)'!G$19) -> 3 | H24: ='similarity analysis (indirect)'!H2 -> 1000
A25: ='similarity analysis (indirect)'!A3 -> object_2 | B25: =RANK('similarity analysis (indirect)'!B3,'similarity analysis (indirect)'!B$2:B$17,'similarity analysis (indirect)'!B$19) -> 2 | C25: =RANK('similarity analysis (indirect)'!C3,'similarity analysis (indirect)'!C$2:C$17,'similarity analysis (indirect)'!C$19) -> 12 | D25: =RANK('similarity analysis (indirect)'!D3,'similarity analysis (indirect)'!D$2:D$17,'similarity analysis (indirect)'!D$19) -> 11 | E25: =RANK('similarity analysis (indirect)'!E3,'similarity analysis (indirect)'!E$2:E$17,'similarity analysis (indirect)'!E$19) -> 10 | F25: =RANK('similarity analysis (indirect)'!F3,'similarity analysis (indirect)'!F$2:F$17,'similarity analysis (indirect)'!F$19) -> 5 | G25: =RANK('similarity analysis (indirect)'!G3,'similarity analysis (indirect)'!G$2:G$17,'similarity analysis (indirect)'!G$19) -> 4 | H25: ='similarity analysis (indirect)'!H3 -> 1000
A26: ='similarity analysis (indirect)'!A4 -> object_3 | B26: =RANK('similarity analysis (indirect)'!B4,'similarity analysis (indirect)'!B$2:B$17,'similarity analysis (indirect)'!B$19) -> 9 | C26: =RANK('similarity analysis (indirect)'!C4,'similarity analysis (indirect)'!C$2:C$17,'similarity analysis (indirect)'!C$19) -> 16 | D26: =RANK('similarity analysis (indirect)'!D4,'similarity analysis (indirect)'!D$2:D$17,'similarity analysis (indirect)'!D$19) -> 5 | E26: =RANK('similarity analysis (indirect)'!E4,'similarity analysis (indirect)'!E$2:E$17,'similarity analysis (indirect)'!E$19) -> 9 | F26: =RANK('similarity analysis (indirect)'!F4,'similarity analysis (indirect)'!F$2:F$17,'similarity analysis (indirect)'!F$19) -> 9 | G26: =RANK('similarity analysis (indirect)'!G4,'similarity analysis (indirect)'!G$2:G$17,'similarity analysis (indirect)'!G$19) -> 13 | H26: ='similarity analysis (indirect)'!H4 -> 1000
A27: ='similarity analysis (indirect)'!A5 -> object_4 | B27: =RANK('similarity analysis (indirect)'!B5,'similarity analysis (indirect)'!B$2:B$17,'similarity analysis (indirect)'!B$19) -> 15 | C27: =RANK('similarity analysis (indirect)'!C5,'similarity analysis (indirect)'!C$2:C$17,'similarity analysis (indirect)'!C$19) -> 3 | D27: =RANK('similarity analysis (indirect)'!D5,'similarity analysis (indirect)'!D$2:D$17,'similarity analysis (indirect)'!D$19) -> 16 | E27: =RANK('similarity analysis (indirect)'!E5,'similarity analysis (indirect)'!E$2:E$17,'similarity analysis (indirect)'!E$19) -> 1 | F27: =RANK('similarity analysis (indirect)'!F5,'similarity analysis (indirect)'!F$2:F$17,'similarity analysis (indirect)'!F$19) -> 7 | G27: =RANK('similarity analysis (indirect)'!G5,'similarity analysis (indirect)'!G$2:G$17,'similarity analysis (indirect)'!G$19) -> 11 | H27: ='similarity analysis (indirect)'!H5 -> 1000
A28: ='similarity analysis (indirect)'!A6 -> object_5 | B28: =RANK('similarity analysis (indirect)'!B6,'similarity analysis (indirect)'!B$2:B$17,'similarity analysis (indirect)'!B$19) -> 6 | C28: =RANK('similarity analysis (indirect)'!C6,'similarity analysis (indirect)'!C$2:C$17,'similarity analysis (indirect)'!C$19) -> 2 | D28: =RANK('similarity analysis (indirect)'!D6,'similarity analysis (indirect)'!D$2:D$17,'similarity analysis (indirect)'!D$19) -> 8 | E28: =RANK('similarity analysis (indirect)'!E6,'similarity analysis (indirect)'!E$2:E$17,'similarity analysis (indirect)'!E$19) -> 14 | F28: =RANK('similarity analysis (indirect)'!F6,'similarity analysis (indirect)'!F$2:F$17,'similarity analysis (indirect)'!F$19) -> 16 | G28: =RANK('similarity analysis (indirect)'!G6,'similarity analysis (indirect)'!G$2:G$17,'similarity analysis (indirect)'!G$19) -> 14 | H28: ='similarity analysis (indirect)'!H6 -> 1000
A29: ='similarity analysis (indirect)'!A7 -> object_6 | B29: =RANK('similarity analysis (indirect)'!B7,'similarity analysis (indirect)'!B$2:B$17,'similarity analysis (indirect)'!B$19) -> 14 | C29: =RANK('similarity analysis (indirect)'!C7,'similarity analysis (indirect)'!C$2:C$17,'similarity analysis (indirect)'!C$19) -> 3 | D29: =RANK('similarity analysis (indirect)'!D7,'similarity analysis (indirect)'!D$2:D$17,'similarity analysis (indirect)'!D$19) -> 10 | E29: =RANK('similarity analysis (indirect)'!E7,'similarity analysis (indirect)'!E$2:E$17,'similarity analysis (indirect)'!E$19) -> 13 | F29: =RANK('similarity analysis (indirect)'!F7,'similarity analysis (indirect)'!F$2:F$17,'similarity analysis (indirect)'!F$19) -> 1 | G29: =RANK('similarity analysis (indirect)'!G7,'similarity analysis (indirect)'!G$2:G$17,'similarity analysis (indirect)'!G$19) -> 1 | H29: ='similarity analysis (indirect)'!H7 -> 1000
A30: ='similarity analysis (indirect)'!A8 -> object_7 | B30: =RANK('similarity analysis (indirect)'!B8,'similarity analysis (indirect)'!B$2:B$17,'similarity analysis (indirect)'!B$19) -> 4 | C30: =RANK('similarity analysis (indirect)'!C8,'similarity analysis (indirect)'!C$2:C$17,'similarity analysis (indirect)'!C$19) -> 13 | D30: =RANK('similarity analysis (indirect)'!D8,'similarity analysis (indirect)'!D$2:D$17,'similarity analysis (indirect)'!D$19) -> 9 | E30: =RANK('similarity analysis (indirect)'!E8,'similarity analysis (indirect)'!E$2:E$17,'similarity analysis (indirect)'!E$19) -> 7 | F30: =RANK('similarity analysis (indirect)'!F8,'similarity analysis (indirect)'!F$2:F$17,'similarity analysis (indirect)'!F$19) -> 15 | G30: =RANK('similarity analysis (indirect)'!G8,'similarity analysis (indirect)'!G$2:G$17,'similarity analysis (indirect)'!G$19) -> 9 | H30: ='similarity analysis (indirect)'!H8 -> 1000
A31: ='similarity analysis (indirect)'!A9 -> object_8 | B31: =RANK('similarity analysis (indirect)'!B9,'similarity analysis (indirect)'!B$2:B$17,'similarity analysis (indirect)'!B$19) -> 5 | C31: =RANK('similarity analysis (indirect)'!C9,'similarity analysis (indirect)'!C$2:C$17,'similarity analysis (indirect)'!C$19) -> 9 | D31: =RANK('similarity analysis (indirect)'!D9,'similarity analysis (indirect)'!D$2:D$17,'similarity analysis (indirect)'!D$19) -> 1 | E31: =RANK('similarity analysis (indirect)'!E9,'similarity analysis (indirect)'!E$2:E$17,'similarity analysis (indirect)'!E$19) -> 12 | F31: =RANK('similarity analysis (indirect)'!F9,'similarity analysis (indirect)'!F$2:F$17,'similarity analysis (indirect)'!F$19) -> 4 | G31: =RANK('similarity analysis (indirect)'!G9,'similarity analysis (indirect)'!G$2:G$17,'similarity analysis (indirect)'!G$19) -> 2 | H31: ='similarity analysis (indirect)'!H9 -> 1000
A32: ='similarity analysis (indirect)'!A10 -> object_9 | B32: =RANK('similarity analysis (indirect)'!B10,'similarity analysis (indirect)'!B$2:B$17,'similarity analysis (indirect)'!B$19) -> 11 | C32: =RANK('similarity analysis (indirect)'!C10,'similarity analysis (indirect)'!C$2:C$17,'similarity analysis (indirect)'!C$19) -> 7 | D32: =RANK('similarity analysis (indirect)'!D10,'similarity analysis (indirect)'!D$2:D$17,'similarity analysis (indirect)'!D$19) -> 6 | E32: =RANK('similarity analysis (indirect)'!E10,'similarity analysis (indirect)'!E$2:E$17,'similarity analysis (indirect)'!E$19) -> 10 | F32: =RANK('similarity analysis (indirect)'!F10,'similarity analysis (indirect)'!F$2:F$17,'similarity analysis (indirect)'!F$19) -> 9 | G32: =RANK('similarity analysis (indirect)'!G10,'similarity analysis (indirect)'!G$2:G$17,'similarity analysis (indirect)'!G$19) -> 7 | H32: ='similarity analysis (indirect)'!H10 -> 1000
A33: ='similarity analysis (indirect)'!A11 -> object_10 | B33: =RANK('similarity analysis (indirect)'!B11,'similarity analysis (indirect)'!B$2:B$17,'similarity analysis (indirect)'!B$19) -> 15 | C33: =RANK('similarity analysis (indirect)'!C11,'similarity analysis (indirect)'!C$2:C$17,'similarity analysis (indirect)'!C$19) -> 11 | D33: =RANK('similarity analysis (indirect)'!D11,'similarity analysis (indirect)'!D$2:D$17,'similarity analysis (indirect)'!D$19) -> 15 | E33: =RANK('similarity analysis (indirect)'!E11,'similarity analysis (indirect)'!E$2:E$17,'similarity analysis (indirect)'!E$19) -> 15 | F33: =RANK('similarity analysis (indirect)'!F11,'similarity analysis (indirect)'!F$2:F$17,'similarity analysis (indirect)'!F$19) -> 13 | G33: =RANK('similarity analysis (indirect)'!G11,'similarity analysis (indirect)'!G$2:G$17,'similarity analysis (indirect)'!G$19) -> 9 | H33: ='similarity analysis (indirect)'!H11 -> 1000
A34: ='similarity analysis (indirect)'!A12 -> object_11 | B34: =RANK('similarity analysis (indirect)'!B12,'similarity analysis (indirect)'!B$2:B$17,'similarity analysis (indirect)'!B$19) -> 12 | C34: =RANK('similarity analysis (indirect)'!C12,'similarity analysis (indirect)'!C$2:C$17,'similarity analysis (indirect)'!C$19) -> 5 | D34: =RANK('similarity analysis (indirect)'!D12,'similarity analysis (indirect)'!D$2:D$17,'similarity analysis (indirect)'!D$19) -> 14 | E34: =RANK('similarity analysis (indirect)'!E12,'similarity analysis (indirect)'!E$2:E$17,'similarity analysis (indirect)'!E$19) -> 8 | F34: =RANK('similarity analysis (indirect)'!F12,'similarity analysis (indirect)'!F$2:F$17,'similarity analysis (indirect)'!F$19) -> 8 | G34: =RANK('similarity analysis (indirect)'!G12,'similarity analysis (indirect)'!G$2:G$17,'similarity analysis (indirect)'!G$19) -> 15 | H34: ='similarity analysis (indirect)'!H12 -> 1000
A35: ='similarity analysis (indirect)'!A13 -> object_12 | B35: =RANK('similarity analysis (indirect)'!B13,'similarity analysis (indirect)'!B$2:B$17,'similarity analysis (indirect)'!B$19) -> 3 | C35: =RANK('similarity analysis (indirect)'!C13,'similarity analysis (indirect)'!C$2:C$17,'similarity analysis (indirect)'!C$19) -> 1 | D35: =RANK('similarity analysis (indirect)'!D13,'similarity analysis (indirect)'!D$2:D$17,'similarity analysis (indirect)'!D$19) -> 7 | E35: =RANK('similarity analysis (indirect)'!E13,'similarity analysis (indirect)'!E$2:E$17,'similarity analysis (indirect)'!E$19) -> 4 | F35: =RANK('similarity analysis (indirect)'!F13,'similarity analysis (indirect)'!F$2:F$17,'similarity analysis (indirect)'!F$19) -> 3 | G35: =RANK('similarity analysis (indirect)'!G13,'similarity analysis (indirect)'!G$2:G$17,'similarity analysis (indirect)'!G$19) -> 5 | H35: ='similarity analysis (indirect)'!H13 -> 1000
A36: ='similarity analysis (indirect)'!A14 -> object_13 | B36: =RANK('similarity analysis (indirect)'!B14,'similarity analysis (indirect)'!B$2:B$17,'similarity analysis (indirect)'!B$19) -> 7 | C36: =RANK('similarity analysis (indirect)'!C14,'similarity analysis (indirect)'!C$2:C$17,'similarity analysis (indirect)'!C$19) -> 10 | D36: =RANK('similarity analysis (indirect)'!D14,'similarity analysis (indirect)'!D$2:D$17,'similarity analysis (indirect)'!D$19) -> 13 | E36: =RANK('similarity analysis (indirect)'!E14,'similarity analysis (indirect)'!E$2:E$17,'similarity analysis (indirect)'!E$19) -> 5 | F36: =RANK('similarity analysis (indirect)'!F14,'similarity analysis (indirect)'!F$2:F$17,'similarity analysis (indirect)'!F$19) -> 2 | G36: =RANK('similarity analysis (indirect)'!G14,'similarity analysis (indirect)'!G$2:G$17,'similarity analysis (indirect)'!G$19) -> 8 | H36: ='similarity analysis (indirect)'!H14 -> 1000
A37: ='similarity analysis (indirect)'!A15 -> object_14 | B37: =RANK('similarity analysis (indirect)'!B15,'similarity analysis (indirect)'!B$2:B$17,'similarity analysis (indirect)'!B$19) -> 10 | C37: =RANK('similarity analysis (indirect)'!C15,'similarity analysis (indirect)'!C$2:C$17,'similarity analysis (indirect)'!C$19) -> 6 | D37: =RANK('similarity analysis (indirect)'!D15,'similarity analysis (indirect)'!D$2:D$17,'similarity analysis (indirect)'!D$19) -> 3 | E37: =RANK('similarity analysis (indirect)'!E15,'similarity analysis (indirect)'!E$2:E$17,'similarity analysis (indirect)'!E$19) -> 2 | F37: =RANK('similarity analysis (indirect)'!F15,'similarity analysis (indirect)'!F$2:F$17,'similarity analysis (indirect)'!F$19) -> 14 | G37: =RANK('similarity analysis (indirect)'!G15,'similarity analysis (indirect)'!G$2:G$17,'similarity analysis (indirect)'!G$19) -> 16 | H37: ='similarity analysis (indirect)'!H15 -> 1000
A38: ='similarity analysis (indirect)'!A16 -> object_15 | B38: =RANK('similarity analysis (indirect)'!B16,'similarity analysis (indirect)'!B$2:B$17,'similarity analysis (indirect)'!B$19) -> 13 | C38: =RANK('similarity analysis (indirect)'!C16,'similarity analysis (indirect)'!C$2:C$17,'similarity analysis (indirect)'!C$19) -> 8 | D38: =RANK('similarity analysis (indirect)'!D16,'similarity analysis (indirect)'!D$2:D$17,'similarity analysis (indirect)'!D$19) -> 11 | E38: =RANK('similarity analysis (indirect)'!E16,'similarity analysis (indirect)'!E$2:E$17,'similarity analysis (indirect)'!E$19) -> 3 | F38: =RANK('similarity analysis (indirect)'!F16,'similarity analysis (indirect)'!F$2:F$17,'similarity analysis (indirect)'!F$19) -> 9 | G38: =RANK('similarity analysis (indirect)'!G16,'similarity analysis (indirect)'!G$2:G$17,'similarity analysis (indirect)'!G$19) -> 6 | H38: ='similarity analysis (indirect)'!H16 -> 1000
A39: ='similarity analysis (indirect)'!A17 -> object_16 | B39: =RANK('similarity analysis (indirect)'!B17,'similarity analysis (indirect)'!B$2:B$17,'similarity analysis (indirect)'!B$19) -> 1 | C39: =RANK('similarity analysis (indirect)'!C17,'similarity analysis (indirect)'!C$2:C$17,'similarity analysis (indirect)'!C$19) -> 13 | D39: =RANK('similarity analysis (indirect)'!D17,'similarity analysis (indirect)'!D$2:D$17,'similarity analysis (indirect)'!D$19) -> 2 | E39: =RANK('similarity analysis (indirect)'!E17,'similarity analysis (indirect)'!E$2:E$17,'similarity analysis (indirect)'!E$19) -> 5 | F39: =RANK('similarity analysis (indirect)'!F17,'similarity analysis (indirect)'!F$2:F$17,'similarity analysis (indirect)'!F$19) -> 9 | G39: =RANK('similarity analysis (indirect)'!G17,'similarity analysis (indirect)'!G$2:G$17,'similarity analysis (indirect)'!G$19) -> 11 | H39: ='similarity analysis (indirect)'!H17 -> 1000
A41: max | B41: =MAX(B24:B39) -> 15 | C41: 16 | D41: 16 | E41: 15 | F41: 16 | G41: 16
A42: min | B42: =MIN(B24:B39) -> 1 | C42: 1 | D42: 1 | E42: 1 | F42: 1 | G42: 1
A45: staircase function | B45: id | C45: ='similarity analysis (indirect)'!B23 -> attribute_1 | D45: ='similarity analysis (indirect)'!C23 -> attribute_2 | E45: ='similarity analysis (indirect)'!D23 -> attribute_3 | F45: ='similarity analysis (indirect)'!E23 -> attribute_4 | G45: ='similarity analysis (indirect)'!F23 -> attribute_5 | H45: ='similarity analysis (indirect)'!G23 -> attribute_6 | J45: differences | K45: =C45 -> attribute_1 | L45: attribute_2 | M45: attribute_3 | N45: attribute_4 | O45: attribute_5 | P45: attribute_6
A46: stair level_1 (S1) | B46: 1 | C46: 171.0117485 | D46: 183.3502351 | E46: 193.4569308 | F46: 106.2782746 | G46: 191.2226588 | H46: 201.6800614 | J46: S1-S2 | K46: =C46-C47 -> 0.9999999998 | L46: =D46-D47 -> 1 | M46: =E46-E47 -> 1.000000007 | N46: =F46-F47 -> 2.999990309 | O46: =G46-G47 -> 0.9999999999 | P46: =H46-H47 -> 0.9999999999
A47: stair level_2 | B47: 2 | C47: 170.0117485 | D47: 182.3502351 | E47: 192.4569308 | F47: 103.2782843 | G47: 190.2226588 | H47: 200.6800614 | J47: … | K47: 0.9999999998 | L47: 1 | M47: 1.000000001 | N47: 1.999993347 | O47: 0.9999999999 | P47: 1.000000004
A48: stair level_3 | B48: 3 | C48: 169.0117485 | D48: 181.3502351 | E48: 191.4569308 | F48: 101.2782909 | G48: 189.2226588 | H48: 199.6800614 | J48: … | K48: 0.9999999998 | L48: 1 | M48: 1.000000001 | N48: 1.307643815 | O48: 0.9999999999 | P48: 1.000000004
A49: stair level_4 | B49: 4 | C49: 168.0117485 | D49: 180.3502351 | E49: 190.4569308 | F49: 99.97064713 | G49: 188.2226588 | H49: 198.6800614 | J49: … | K49: 0.9999999998 | L49: 1 | M49: 1.000000001 | N49: 0.9999999965 | O49: 0.9999999999 | P49: 1.000000004
A50: stair level_5 | B50: 5 | C50: 167.0117485 | D50: 179.3502351 | E50: 189.4569308 | F50: 98.97064714 | G50: 187.2226588 | H50: 197.6800614 | J50: … | K50: 0.9999999998 | L50: 1 | M50: 1.000000002 | N50: 0.9999999965 | O50: 0.9999999999 | P50: 1.000000004
A51: stair level_6 | B51: 6 | C51: 166.0117485 | D51: 178.3502351 | E51: 188.4569308 | F51: 97.97064714 | G51: 186.2226588 | H51: 196.6800614 | J51: … | K51: 0.9999999998 | L51: 1 | M51: 1.000000002 | N51: 0.9999999964 | O51: 0.9999999999 | P51: 1.000000005
A52: stair level_7 | B52: 7 | C52: 165.0117485 | D52: 177.3502351 | E52: 187.4569308 | F52: 96.97064714 | G52: 185.2226588 | H52: 195.6800614 | J52: … | K52: 0.9999999998 | L52: 1 | M52: 1.000000002 | N52: 0.9999999964 | O52: 0.9999999999 | P52: 1.000000005
A53: stair level_8 | B53: 8 | C53: 164.0117485 | D53: 176.3502351 | E53: 186.4569308 | F53: 95.97064715 | G53: 184.2226588 | H53: 194.6800614 | J53: … | K53: 0.9999999998 | L53: 1 | M53: 1.000000002 | N53: 0.9999999963 | O53: 0.9999999999 | P53: 1.000000005
A54: stair level_9 | B54: 9 | C54: 163.0117485 | D54: 175.3502351 | E54: 185.4569308 | F54: 94.97064715 | G54: 183.2226588 | H54: 193.6800614 | J54: … | K54: 0.9999999998 | L54: 1 | M54: 1.000000002 | N54: 0.9999999963 | O54: 0.9999999999 | P54: 1.000000005
A55: stair level_10 | B55: 10 | C55: 162.0117485 | D55: 174.3502351 | E55: 184.4569308 | F55: 93.97064715 | G55: 182.2226588 | H55: 192.6800613 | J55: … | K55: 0.9999999998 | L55: 1 | M55: 1.000000002 | N55: 0.9999999962 | O55: 0.9999999999 | P55: 1.000000005
A56: stair level_11 | B56: 11 | C56: 161.0117485 | D56: 173.3502351 | E56: 183.4569308 | F56: 92.97064716 | G56: 181.2226588 | H56: 191.6800613 | J56: … | K56: 0.9999999998 | L56: 1 | M56: 1.000000002 | N56: 0.9999999962 | O56: 0.9999999999 | P56: 1.000000005
A57: stair level_12 | B57: 12 | C57: 160.0117485 | D57: 172.3502351 | E57: 182.4569308 | F57: 91.97064716 | G57: 180.2226588 | H57: 190.6800613 | J57: … | K57: 0.9999999998 | L57: 1 | M57: 1.000000002 | N57: 0.9999999961 | O57: 0.9999999999 | P57: 1.000000005
A58: stair level_13 | B58: 13 | C58: 159.0117485 | D58: 171.3502351 | E58: 181.4569308 | F58: 90.97064717 | G58: 179.2226588 | H58: 189.6800613 | J58: … | K58: 0.9999999998 | L58: 1 | M58: 1.000000002 | N58: 1.000000001 | O58: 0.9999999999 | P58: 1.000000005
A59: stair level_14 | B59: 14 | C59: 158.0117485 | D59: 170.3502351 | E59: 180.4569308 | F59: 89.97064717 | G59: 178.2226588 | H59: 188.6800613 | J59: … | K59: 0.9999999998 | L59: 1 | M59: 1.000000002 | N59: 1 | O59: 0.9999999999 | P59: 1.000000005
A60: stair level_15 | B60: 15 | C60: 157.0117485 | D60: 169.3502351 | E60: 179.4569308 | F60: 88.97064716 | G60: 177.2226588 | H60: 187.6800613 | J60: S15-S16 | K60: 0.9999999998 | L60: 1 | M60: 1.000000002 | N60: 27.7800204 | O60: 0.9999999999 | P60: 1.000000005
A61: stair level_16 (S16) | B61: 16 | C61: 156.0117485 | D61: 168.3502351 | E61: 178.4569308 | F61: 61.19062677 | G61: 176.2226588 | H61: 186.6800613
A64: ='similarity analysis (indirect)'!A23 -> OAM | B64: ='similarity analysis (indirect)'!B23 -> attribute_1 | C64: ='similarity analysis (indirect)'!C23 -> attribute_2 | D64: ='similarity analysis (indirect)'!D23 -> attribute_3 | E64: ='similarity analysis (indirect)'!E23 -> attribute_4 | F64: ='similarity analysis (indirect)'!F23 -> attribute_5 | G64: ='similarity analysis (indirect)'!G23 -> attribute_6 | H64: ='similarity analysis (indirect)'!H23 -> Y0 | I64: estimation | J64: difference
A65: ='similarity analysis (indirect)'!A24 -> object_1 | B65: =VLOOKUP('similarity analysis (indirect)'!B24,'similarity analysis (indirect)'!$B$46:$H$61,'similarity analysis (indirect)'!B$81,0) -> 164.0117485 | C65: =VLOOKUP('similarity analysis (indirect)'!C24,'similarity analysis (indirect)'!$B$46:$H$61,'similarity analysis (indirect)'!C$81,0) -> 169.3502351 | D65: =VLOOKUP('similarity analysis (indirect)'!D24,'similarity analysis (indirect)'!$B$46:$H$61,'similarity analysis (indirect)'!D$81,0) -> 190.4569308 | E65: =VLOOKUP('similarity analysis (indirect)'!E24,'similarity analysis (indirect)'!$B$46:$H$61,'similarity analysis (indirect)'!E$81,0) -> 88.97064716 | F65: =VLOOKUP('similarity analysis (indirect)'!F24,'similarity analysis (indirect)'!$B$46:$H$61,'similarity analysis (indirect)'!F$81,0) -> 187.2226588 | G65: =VLOOKUP('similarity analysis (indirect)'!G24,'similarity analysis (indirect)'!$B$46:$H$61,'similarity analysis (indirect)'!G$81,0) -> 199.6800614 | H65: ='similarity analysis (indirect)'!H24 -> 1000 | I65: =SUM(B65:G65) -> 999.6922818 | J65: =H65-I65 -> 0.3077181789
A66: ='similarity analysis (indirect)'!A25 -> object_2 | B66: =VLOOKUP('similarity analysis (indirect)'!B25,'similarity analysis (indirect)'!$B$46:$H$61,'similarity analysis (indirect)'!B$81,0) -> 170.0117485 | C66: =VLOOKUP('similarity analysis (indirect)'!C25,'similarity analysis (indirect)'!$B$46:$H$61,'similarity analysis (indirect)'!C$81,0) -> 172.3502351 | D66: =VLOOKUP('similarity analysis (indirect)'!D25,'similarity analysis (indirect)'!$B$46:$H$61,'similarity analysis (indirect)'!D$81,0) -> 183.4569308 | E66: =VLOOKUP('similarity analysis (indirect)'!E25,'similarity analysis (indirect)'!$B$46:$H$61,'similarity analysis (indirect)'!E$81,0) -> 93.97064715 | F66: =VLOOKUP('similarity analysis (indirect)'!F25,'similarity analysis (indirect)'!$B$46:$H$61,'similarity analysis (indirect)'!F$81,0) -> 187.2226588 | G66: =VLOOKUP('similarity analysis (indirect)'!G25,'similarity analysis (indirect)'!$B$46:$H$61,'similarity analysis (indirect)'!G$81,0) -> 198.6800614 | H66: ='similarity analysis (indirect)'!H25 -> 1000 | I66: 1005.692282 | J66: -5.692281796
A67: ='similarity analysis (indirect)'!A26 -> object_3 | B67: =VLOOKUP('similarity analysis (indirect)'!B26,'similarity analysis (indirect)'!$B$46:$H$61,'similarity analysis (indirect)'!B$81,0) -> 163.0117485 | C67: =VLOOKUP('similarity analysis (indirect)'!C26,'similarity analysis (indirect)'!$B$46:$H$61,'similarity analysis (indirect)'!C$81,0) -> 168.3502351 | D67: =VLOOKUP('similarity analysis (indirect)'!D26,'similarity analysis (indirect)'!$B$46:$H$61,'similarity analysis (indirect)'!D$81,0) -> 189.4569308 | E67: =VLOOKUP('similarity analysis (indirect)'!E26,'similarity analysis (indirect)'!$B$46:$H$61,'similarity analysis (indirect)'!E$81,0) -> 94.97064715 | F67: =VLOOKUP('similarity analysis (indirect)'!F26,'similarity analysis (indirect)'!$B$46:$H$61,'similarity analysis (indirect)'!F$81,0) -> 183.2226588 | G67: =VLOOKUP('similarity analysis (indirect)'!G26,'similarity analysis (indirect)'!$B$46:$H$61,'similarity analysis (indirect)'!G$81,0) -> 189.6800613 | H67: ='similarity analysis (indirect)'!H26 -> 1000 | I67: 988.6922818 | J67: 11.30771824
A68: ='similarity analysis (indirect)'!A27 -> object_4 | B68: =VLOOKUP('similarity analysis (indirect)'!B27,'similarity analysis (indirect)'!$B$46:$H$61,'similarity analysis (indirect)'!B$81,0) -> 157.0117485 | C68: =VLOOKUP('similarity analysis (indirect)'!C27,'similarity analysis (indirect)'!$B$46:$H$61,'similarity analysis (indirect)'!C$81,0) -> 181.3502351 | D68: =VLOOKUP('similarity analysis (indirect)'!D27,'similarity analysis (indirect)'!$B$46:$H$61,'similarity analysis (indirect)'!D$81,0) -> 178.4569308 | E68: =VLOOKUP('similarity analysis (indirect)'!E27,'similarity analysis (indirect)'!$B$46:$H$61,'similarity analysis (indirect)'!E$81,0) -> 106.2782746 | F68: =VLOOKUP('similarity analysis (indirect)'!F27,'similarity analysis (indirect)'!$B$46:$H$61,'similarity analysis (indirect)'!F$81,0) -> 185.2226588 | G68: =VLOOKUP('similarity analysis (indirect)'!G27,'similarity analysis (indirect)'!$B$46:$H$61,'similarity analysis (indirect)'!G$81,0) -> 191.6800613 | H68: ='similarity analysis (indirect)'!H27 -> 1000 | I68: 999.9999092 | J68: 9.078917515e-05
A69: ='similarity analysis (indirect)'!A28 -> object_5 | B69: =VLOOKUP('similarity analysis (indirect)'!B28,'similarity analysis (indirect)'!$B$46:$H$61,'similarity analysis (indirect)'!B$81,0) -> 166.0117485 | C69: =VLOOKUP('similarity analysis (indirect)'!C28,'similarity analysis (indirect)'!$B$46:$H$61,'similarity analysis (indirect)'!C$81,0) -> 182.3502351 | D69: =VLOOKUP('similarity analysis (indirect)'!D28,'similarity analysis (indirect)'!$B$46:$H$61,'similarity analysis (indirect)'!D$81,0) -> 186.4569308 | E69: =VLOOKUP('similarity analysis (indirect)'!E28,'similarity analysis (indirect)'!$B$46:$H$61,'similarity analysis (indirect)'!E$81,0) -> 89.97064717 | F69: =VLOOKUP('similarity analysis (indirect)'!F28,'similarity analysis (indirect)'!$B$46:$H$61,'similarity analysis (indirect)'!F$81,0) -> 176.2226588 | G69: =VLOOKUP('similarity analysis (indirect)'!G28,'similarity analysis (indirect)'!$B$46:$H$61,'similarity analysis (indirect)'!G$81,0) -> 188.6800613 | H69: ='similarity analysis (indirect)'!H28 -> 1000 | I69: 989.6922818 | J69: 10.30771823
A70: ='similarity analysis (indirect)'!A29 -> object_6 | B70: =VLOOKUP('similarity analysis (indirect)'!B29,'similarity analysis (indirect)'!$B$46:$H$61,'similarity analysis (indirect)'!B$81,0) -> 158.0117485 | C70: =VLOOKUP('similarity analysis (indirect)'!C29,'similarity analysis (indirect)'!$B$46:$H$61,'similarity analysis (indirect)'!C$81,0) -> 181.3502351 | D70: =VLOOKUP('similarity analysis (indirect)'!D29,'similarity analysis (indirect)'!$B$46:$H$61,'similarity analysis (indirect)'!D$81,0) -> 184.4569308 | E70: =VLOOKUP('similarity analysis (indirect)'!E29,'similarity analysis (indirect)'!$B$46:$H$61,'similarity analysis (indirect)'!E$81,0) -> 90.97064717 | F70: =VLOOKUP('similarity analysis (indirect)'!F29,'similarity analysis (indirect)'!$B$46:$H$61,'similarity analysis (indirect)'!F$81,0) -> 191.2226588 | G70: =VLOOKUP('similarity analysis (indirect)'!G29,'similarity analysis (indirect)'!$B$46:$H$61,'similarity analysis (indirect)'!G$81,0) -> 201.6800614 | H70: ='similarity analysis (indirect)'!H29 -> 1000 | I70: 1007.692282 | J70: -7.692281822
A71: ='similarity analysis (indirect)'!A30 -> object_7 | B71: =VLOOKUP('similarity analysis (indirect)'!B30,'similarity analysis (indirect)'!$B$46:$H$61,'similarity analysis (indirect)'!B$81,0) -> 168.0117485 | C71: =VLOOKUP('similarity analysis (indirect)'!C30,'similarity analysis (indirect)'!$B$46:$H$61,'similarity analysis (indirect)'!C$81,0) -> 171.3502351 | D71: =VLOOKUP('similarity analysis (indirect)'!D30,'similarity analysis (indirect)'!$B$46:$H$61,'similarity analysis (indirect)'!D$81,0) -> 185.4569308 | E71: =VLOOKUP('similarity analysis (indirect)'!E30,'similarity analysis (indirect)'!$B$46:$H$61,'similarity analysis (indirect)'!E$81,0) -> 96.97064714 | F71: =VLOOKUP('similarity analysis (indirect)'!F30,'similarity analysis (indirect)'!$B$46:$H$61,'similarity analysis (indirect)'!F$81,0) -> 177.2226588 | G71: =VLOOKUP('similarity analysis (indirect)'!G30,'similarity analysis (indirect)'!$B$46:$H$61,'similarity analysis (indirect)'!G$81,0) -> 193.6800614 | H71: ='similarity analysis (indirect)'!H30 -> 1000 | I71: 992.6922818 | J71: 7.307718234
A72: ='similarity analysis (indirect)'!A31 -> object_8 | B72: =VLOOKUP('similarity analysis (indirect)'!B31,'similarity analysis (indirect)'!$B$46:$H$61,'similarity analysis (indirect)'!B$81,0) -> 167.0117485 | C72: =VLOOKUP('similarity analysis (indirect)'!C31,'similarity analysis (indirect)'!$B$46:$H$61,'similarity analysis (indirect)'!C$81,0) -> 175.3502351 | D72: =VLOOKUP('similarity analysis (indirect)'!D31,'similarity analysis (indirect)'!$B$46:$H$61,'similarity analysis (indirect)'!D$81,0) -> 193.4569308 | E72: =VLOOKUP('similarity analysis (indirect)'!E31,'similarity analysis (indirect)'!$B$46:$H$61,'similarity analysis (indirect)'!E$81,0) -> 91.97064716 | F72: =VLOOKUP('similarity analysis (indirect)'!F31,'similarity analysis (indirect)'!$B$46:$H$61,'similarity analysis (indirect)'!F$81,0) -> 188.2226588 | G72: =VLOOKUP('similarity analysis (indirect)'!G31,'similarity analysis (indirect)'!$B$46:$H$61,'similarity analysis (indirect)'!G$81,0) -> 200.6800614 | H72: ='similarity analysis (indirect)'!H31 -> 1000 | I72: 1016.692282 | J72: -16.69228183
A73: ='similarity analysis (indirect)'!A32 -> object_9 | B73: =VLOOKUP('similarity analysis (indirect)'!B32,'similarity analysis (indirect)'!$B$46:$H$61,'similarity analysis (indirect)'!B$81,0) -> 161.0117485 | C73: =VLOOKUP('similarity analysis (indirect)'!C32,'similarity analysis (indirect)'!$B$46:$H$61,'similarity analysis (indirect)'!C$81,0) -> 177.3502351 | D73: =VLOOKUP('similarity analysis (indirect)'!D32,'similarity analysis (indirect)'!$B$46:$H$61,'similarity analysis (indirect)'!D$81,0) -> 188.4569308 | E73: =VLOOKUP('similarity analysis (indirect)'!E32,'similarity analysis (indirect)'!$B$46:$H$61,'similarity analysis (indirect)'!E$81,0) -> 93.97064715 | F73: =VLOOKUP('similarity analysis (indirect)'!F32,'similarity analysis (indirect)'!$B$46:$H$61,'similarity analysis (indirect)'!F$81,0) -> 183.2226588 | G73: =VLOOKUP('similarity analysis (indirect)'!G32,'similarity analysis (indirect)'!$B$46:$H$61,'similarity analysis (indirect)'!G$81,0) -> 195.6800614 | H73: ='similarity analysis (indirect)'!H32 -> 1000 | I73: 999.6922818 | J73: 0.3077182061
A74: ='similarity analysis (indirect)'!A33 -> object_10 | B74: =VLOOKUP('similarity analysis (indirect)'!B33,'similarity analysis (indirect)'!$B$46:$H$61,'similarity analysis (indirect)'!B$81,0) -> 157.0117485 | C74: =VLOOKUP('similarity analysis (indirect)'!C33,'similarity analysis (indirect)'!$B$46:$H$61,'similarity analysis (indirect)'!C$81,0) -> 173.3502351 | D74: =VLOOKUP('similarity analysis (indirect)'!D33,'similarity analysis (indirect)'!$B$46:$H$61,'similarity analysis (indirect)'!D$81,0) -> 179.4569308 | E74: =VLOOKUP('similarity analysis (indirect)'!E33,'similarity analysis (indirect)'!$B$46:$H$61,'similarity analysis (indirect)'!E$81,0) -> 88.97064716 | F74: =VLOOKUP('similarity analysis (indirect)'!F33,'similarity analysis (indirect)'!$B$46:$H$61,'similarity analysis (indirect)'!F$81,0) -> 179.2226588 | G74: =VLOOKUP('similarity analysis (indirect)'!G33,'similarity analysis (indirect)'!$B$46:$H$61,'similarity analysis (indirect)'!G$81,0) -> 193.6800614 | H74: ='similarity analysis (indirect)'!H33 -> 1000 | I74: 971.6922818 | J74: 28.30771822
A75: ='similarity analysis (indirect)'!A34 -> object_11 | B75: =VLOOKUP('similarity analysis (indirect)'!B34,'similarity analysis (indirect)'!$B$46:$H$61,'similarity analysis (indirect)'!B$81,0) -> 160.0117485 | C75: =VLOOKUP('similarity analysis (indirect)'!C34,'similarity analysis (indirect)'!$B$46:$H$61,'similarity analysis (indirect)'!C$81,0) -> 179.3502351 | D75: =VLOOKUP('similarity analysis (indirect)'!D34,'similarity analysis (indirect)'!$B$46:$H$61,'similarity analysis (indirect)'!D$81,0) -> 180.4569308 | E75: =VLOOKUP('similarity analysis (indirect)'!E34,'similarity analysis (indirect)'!$B$46:$H$61,'similarity analysis (indirect)'!E$81,0) -> 95.97064715 | F75: =VLOOKUP('similarity analysis (indirect)'!F34,'similarity analysis (indirect)'!$B$46:$H$61,'similarity analysis (indirect)'!F$81,0) -> 184.2226588 | G75: =VLOOKUP('similarity analysis (indirect)'!G34,'similarity analysis (indirect)'!$B$46:$H$61,'similarity analysis (indirect)'!G$81,0) -> 187.6800613 | H75: ='similarity analysis (indirect)'!H34 -> 1000 | I75: 987.6922817 | J75: 12.30771826
A76: ='similarity analysis (indirect)'!A35 -> object_12 | B76: =VLOOKUP('similarity analysis (indirect)'!B35,'similarity analysis (indirect)'!$B$46:$H$61,'similarity analysis (indirect)'!B$81,0) -> 169.0117485 | C76: =VLOOKUP('similarity analysis (indirect)'!C35,'similarity analysis (indirect)'!$B$46:$H$61,'similarity analysis (indirect)'!C$81,0) -> 183.3502351 | D76: =VLOOKUP('similarity analysis (indirect)'!D35,'similarity analysis (indirect)'!$B$46:$H$61,'similarity analysis (indirect)'!D$81,0) -> 187.4569308 | E76: =VLOOKUP('similarity analysis (indirect)'!E35,'similarity analysis (indirect)'!$B$46:$H$61,'similarity analysis (indirect)'!E$81,0) -> 99.97064713 | F76: =VLOOKUP('similarity analysis (indirect)'!F35,'similarity analysis (indirect)'!$B$46:$H$61,'similarity analysis (indirect)'!F$81,0) -> 189.2226588 | G76: =VLOOKUP('similarity analysis (indirect)'!G35,'similarity analysis (indirect)'!$B$46:$H$61,'similarity analysis (indirect)'!G$81,0) -> 197.6800614 | H76: ='similarity analysis (indirect)'!H35 -> 1000 | I76: 1026.692282 | J76: -26.69228178
A77: ='similarity analysis (indirect)'!A36 -> object_13 | B77: =VLOOKUP('similarity analysis (indirect)'!B36,'similarity analysis (indirect)'!$B$46:$H$61,'similarity analysis (indirect)'!B$81,0) -> 165.0117485 | C77: =VLOOKUP('similarity analysis (indirect)'!C36,'similarity analysis (indirect)'!$B$46:$H$61,'similarity analysis (indirect)'!C$81,0) -> 174.3502351 | D77: =VLOOKUP('similarity analysis (indirect)'!D36,'similarity analysis (indirect)'!$B$46:$H$61,'similarity analysis (indirect)'!D$81,0) -> 181.4569308 | E77: =VLOOKUP('similarity analysis (indirect)'!E36,'similarity analysis (indirect)'!$B$46:$H$61,'similarity analysis (indirect)'!E$81,0) -> 98.97064714 | F77: =VLOOKUP('similarity analysis (indirect)'!F36,'similarity analysis (indirect)'!$B$46:$H$61,'similarity analysis (indirect)'!F$81,0) -> 190.2226588 | G77: =VLOOKUP('similarity analysis (indirect)'!G36,'similarity analysis (indirect)'!$B$46:$H$61,'similarity analysis (indirect)'!G$81,0) -> 194.6800614 | H77: ='similarity analysis (indirect)'!H36 -> 1000 | I77: 1004.692282 | J77: -4.692281757
A78: ='similarity analysis (indirect)'!A37 -> object_14 | B78: =VLOOKUP('similarity analysis (indirect)'!B37,'similarity analysis (indirect)'!$B$46:$H$61,'similarity analysis (indirect)'!B$81,0) -> 162.0117485 | C78: =VLOOKUP('similarity analysis (indirect)'!C37,'similarity analysis (indirect)'!$B$46:$H$61,'similarity analysis (indirect)'!C$81,0) -> 178.3502351 | D78: =VLOOKUP('similarity analysis (indirect)'!D37,'similarity analysis (indirect)'!$B$46:$H$61,'similarity analysis (indirect)'!D$81,0) -> 191.4569308 | E78: =VLOOKUP('similarity analysis (indirect)'!E37,'similarity analysis (indirect)'!$B$46:$H$61,'similarity analysis (indirect)'!E$81,0) -> 103.2782843 | F78: =VLOOKUP('similarity analysis (indirect)'!F37,'similarity analysis (indirect)'!$B$46:$H$61,'similarity analysis (indirect)'!F$81,0) -> 178.2226588 | G78: =VLOOKUP('similarity analysis (indirect)'!G37,'similarity analysis (indirect)'!$B$46:$H$61,'similarity analysis (indirect)'!G$81,0) -> 186.6800613 | H78: ='similarity analysis (indirect)'!H37 -> 1000 | I78: 999.9999189 | J78: 8.110322347e-05
A79: ='similarity analysis (indirect)'!A38 -> object_15 | B79: =VLOOKUP('similarity analysis (indirect)'!B38,'similarity analysis (indirect)'!$B$46:$H$61,'similarity analysis (indirect)'!B$81,0) -> 159.0117485 | C79: =VLOOKUP('similarity analysis (indirect)'!C38,'similarity analysis (indirect)'!$B$46:$H$61,'similarity analysis (indirect)'!C$81,0) -> 176.3502351 | D79: =VLOOKUP('similarity analysis (indirect)'!D38,'similarity analysis (indirect)'!$B$46:$H$61,'similarity analysis (indirect)'!D$81,0) -> 183.4569308 | E79: =VLOOKUP('similarity analysis (indirect)'!E38,'similarity analysis (indirect)'!$B$46:$H$61,'similarity analysis (indirect)'!E$81,0) -> 101.2782909 | F79: =VLOOKUP('similarity analysis (indirect)'!F38,'similarity analysis (indirect)'!$B$46:$H$61,'similarity analysis (indirect)'!F$81,0) -> 183.2226588 | G79: =VLOOKUP('similarity analysis (indirect)'!G38,'similarity analysis (indirect)'!$B$46:$H$61,'similarity analysis (indirect)'!G$81,0) -> 196.6800614 | H79: ='similarity analysis (indirect)'!H38 -> 1000 | I79: 999.9999256 | J79: 7.441571233e-05
A80: ='similarity analysis (indirect)'!A39 -> object_16 | B80: =VLOOKUP('similarity analysis (indirect)'!B39,'similarity analysis (indirect)'!$B$46:$H$61,'similarity analysis (indirect)'!B$81,0) -> 171.0117485 | C80: =VLOOKUP('similarity analysis (indirect)'!C39,'similarity analysis (indirect)'!$B$46:$H$61,'similarity analysis (indirect)'!C$81,0) -> 171.3502351 | D80: =VLOOKUP('similarity analysis (indirect)'!D39,'similarity analysis (indirect)'!$B$46:$H$61,'similarity analysis (indirect)'!D$81,0) -> 192.4569308 | E80: =VLOOKUP('similarity analysis (indirect)'!E39,'similarity analysis (indirect)'!$B$46:$H$61,'similarity analysis (indirect)'!E$81,0) -> 98.97064714 | F80: =VLOOKUP('similarity analysis (indirect)'!F39,'similarity analysis (indirect)'!$B$46:$H$61,'similarity analysis (indirect)'!F$81,0) -> 183.2226588 | G80: =VLOOKUP('similarity analysis (indirect)'!G39,'similarity analysis (indirect)'!$B$46:$H$61,'similarity analysis (indirect)'!G$81,0) -> 191.6800613 | H80: ='similarity analysis (indirect)'!H39 -> 1000 | I80: 1008.692282 | J80: -8.692281759
A81: id | B81: 2 | C81: 3 | D81: 4 | E81: 5 | F81: 6 | G81: 7
I82: error level | J82: =SUMSQ(J65:J80) -> 2420.769235

Sheet keystrokemousemacro
A1: OAM | B1: attribute1 | C1: attribute2 | D1: attribute3 | E1: y0 | G1: original
A2: object1 | B2: =RANDBETWEEN(50,100) -> 55 | C2: =RANDBETWEEN(50,100) -> 77 | D2: 59 | E2: 1000
A3: obejct2 | B3: =RANDBETWEEN(50,100) -> 61 | C3: 55 | D3: 77 | E3: 1000
A4: object3 | B4: 85 | C4: 81 | D4: 87 | E4: 100
A7: OAM | B7: attribute1 | C7: attribute2 | D7: attribute3 | E7: y0 | G7: recorded, saved,loaded,played | I7: reduced version | J7: OAM
A8: object1 | B8: =RANDBETWEEN(50,100) -> 89 | C8: =RANDBETWEEN(50,100) -> 89 | D8: 74 | E8: 1000
A9: obejct2 | B9: =RANDBETWEEN(50,100) -> 100 | C9: 92 | D9: 72 | E9: 1000
A10: object3 | B10: 97 | C10: 77 | D10: 70 | E10: 100
A12: **Script version 2.0.2.0** | G12: full version | I12: reduced version | J12: **Script version 2.0.2.0**
A13: 5 | B13: 656 | J13: 3 | K13: {Shift}
A14: 1 | B14: X:848 Y:469 | J14: 3 | K14: o
A15: 1 | B15: X:847 Y:480 | J15: 3 | K15: a
A16: 5 | B16: 16 | J16: 3 | K16: m
A17: 1 | B17: X:844 Y:512 | J17: 4 | K17: {Shift}
A18: 1 | B18: X:844 Y:524 | J18: 3 | K18: {Enter}
A19: 1 | B19: X:840 Y:558
A20: 1 | B20: X:836 Y:570
A21: 5 | B21: 16
A22: 1 | B22: X:833 Y:604
A23: 1 | B23: X:832 Y:615
A24: 1 | B24: X:826 Y:648
A25: 5 | B25: 15
A26: 1 | B26: X:825 Y:659
A27: 1 | B27: X:819 Y:687
A28: 1 | B28: X:817 Y:698
A29: 1 | B29: X:812 Y:726
A30: 5 | B30: 16
A31: 1 | B31: X:811 Y:738
A32: 1 | B32: X:803 Y:761
A33: 1 | B33: X:802 Y:773
A34: 5 | B34: 15
A35: 1 | B35: X:795 Y:801
A36: 1 | B36: X:794 Y:811
A37: 1 | B37: X:786 Y:837
A38: 1 | B38: X:785 Y:845
A39: 5 | B39: 16
A40: 1 | B40: X:778 Y:871
A41: 1 | B41: X:776 Y:878
A42: 1 | B42: X:773 Y:898
A43: 1 | B43: X:771 Y:905
A44: 5 | B44: 16
A45: 1 | B45: X:769 Y:925
A46: 1 | B46: X:768 Y:930
A47: 5 | B47: 15
A48: 1 | B48: X:767 Y:946
A49: 1 | B49: X:767 Y:954
A50: 1 | B50: X:766 Y:967
A51: 1 | B51: X:763 Y:974
A52: 5 | B52: 16
A53: 1 | B53: X:762 Y:987
A54: 1 | B54: X:762 Y:992
A55: 1 | B55: X:761 Y:1003
A56: 1 | B56: X:761 Y:1007
A57: 5 | B57: 16
A58: 1 | B58: X:760 Y:1017
A59: 1 | B59: X:759 Y:1020
A60: 1 | B60: X:758 Y:1027
A61: 5 | B61: 15
A62: 1 | B62: X:758 Y:1031
A63: 1 | B63: X:757 Y:1034
A64: 1 | B64: X:757 Y:1036
A65: 5 | B65: 16
A66: 1 | B66: X:757 Y:1039
A67: 1 | B67: X:756 Y:1040
A68: 1 | B68: X:756 Y:1041
A69: 1 | B69: X:756 Y:1041
A70: 5 | B70: 15
A71: 1 | B71: X:756 Y:1042
A72: 1 | B72: X:756 Y:1043
A73: 1 | B73: X:756 Y:1043
A74: 5 | B74: 16
A75: 1 | B75: X:754 Y:1046
A76: 1 | B76: X:754 Y:1047
A77: 1 | B77: X:753 Y:1048
A78: 5 | B78: 16
A79: 1 | B79: X:752 Y:1050
A80: 1 | B80: X:752 Y:1051
A81: 1 | B81: X:751 Y:1054
A82: 5 | B82: 15
A83: 1 | B83: X:751 Y:1055
A84: 1 | B84: X:750 Y:1057
A85: 1 | B85: X:748 Y:1059
A86: 1 | B86: X:747 Y:1060
A87: 5 | B87: 16
A88: 1 | B88: X:746 Y:1063
A89: 1 | B89: X:745 Y:1064
A90: 1 | B90: X:744 Y:1065
A91: 5 | B91: 16
A92: 1 | B92: X:744 Y:1066
A93: 1 | B93: X:744 Y:1066
A94: 1 | B94: X:743 Y:1067
A95: 5 | B95: 15
A96: 1 | B96: X:741 Y:1068
A97: 1 | B97: X:741 Y:1069
A98: 5 | B98: 16
A99: 1 | B99: X:740 Y:1069
A100: 1 | B100: X:739 Y:1069
A101: 5 | B101: 47
A102: 1 | B102: X:738 Y:1069
A103: 5 | B103: 15
A104: 1 | B104: X:737 Y:1069
A105: 5 | B105: 16
A106: 1 | B106: X:737 Y:1068
A107: 1 | B107: X:736 Y:1068
A108: 1 | B108: X:736 Y:1067
A109: 5 | B109: 16
A110: 1 | B110: X:735 Y:1067
A111: 1 | B111: X:734 Y:1067
A112: 5 | B112: 15
A113: 1 | B113: X:733 Y:1067
A114: 1 | B114: X:730 Y:1067
A115: 1 | B115: X:729 Y:1067
A116: 5 | B116: 16
A117: 1 | B117: X:727 Y:1067
A118: 1 | B118: X:726 Y:1067
A119: 5 | B119: 31
A120: 1 | B120: X:726 Y:1067
A121: 1 | B121: X:726 Y:1066
A122: 5 | B122: 16
A123: 1 | B123: X:725 Y:1066
A124: 1 | B124: X:725 Y:1065
A125: 5 | B125: 15
A126: 1 | B126: X:725 Y:1065
A127: 5 | B127: 16
A128: 1 | B128: X:725 Y:1065
A129: 5 | B129: 16
A130: 1 | B130: X:725 Y:1064
A131: 1 | B131: X:725 Y:1064
A132: 1 | B132: X:725 Y:1063
A133: 1 | B133: X:725 Y:1062
A134: 5 | B134: 203
A135: 2 | B135: Left Down
A136: 5 | B136: 218
A137: 2 | B137: Left Up
A138: 5 | B138: 1579
A139: 1 | B139: X:726 Y:1060
A140: 1 | B140: X:729 Y:1059
A141: 5 | B141: 15
A142: 1 | B142: X:730 Y:1057
A143: 1 | B143: X:731 Y:1055
A144: 1 | B144: X:734 Y:1053
A145: 1 | B145: X:736 Y:1052
A146: 5 | B146: 16
A147: 1 | B147: X:738 Y:1051
A148: 1 | B148: X:739 Y:1049
A149: 1 | B149: X:740 Y:1047
A150: 5 | B150: 15
A151: 1 | B151: X:743 Y:1045
A152: 1 | B152: X:743 Y:1044
A153: 1 | B153: X:744 Y:1043
A154: 1 | B154: X:746 Y:1042
A155: 5 | B155: 16
A156: 1 | B156: X:748 Y:1040
A157: 1 | B157: X:749 Y:1039
A158: 1 | B158: X:752 Y:1035
A159: 5 | B159: 16
A160: 1 | B160: X:753 Y:1035
A161: 1 | B161: X:755 Y:1033
A162: 1 | B162: X:755 Y:1033
A163: 5 | B163: 15
A164: 1 | B164: X:757 Y:1030
A165: 1 | B165: X:759 Y:1030
A166: 1 | B166: X:761 Y:1028
A167: 1 | B167: X:762 Y:1027
A168: 5 | B168: 16
A169: 1 | B169: X:763 Y:1026
A170: 1 | B170: X:764 Y:1025
A171: 1 | B171: X:766 Y:1024
A172: 5 | B172: 16
A173: 1 | B173: X:768 Y:1023
A174: 1 | B174: X:769 Y:1023
A175: 1 | B175: X:770 Y:1022
A176: 5 | B176: 15
A177: 1 | B177: X:770 Y:1020
A178: 5 | B178: 16
A179: 1 | B179: X:770 Y:1020
A180: 5 | B180: 78
A181: 1 | B181: X:770 Y:1020
A182: 5 | B182: 16
A183: 1 | B183: X:770 Y:1020
A184: 1 | B184: X:770 Y:1021
A185: 1 | B185: X:770 Y:1021
A186: 5 | B186: 16
A187: 1 | B187: X:769 Y:1021
A188: 5 | B188: 15
A189: 1 | B189: X:769 Y:1021
A190: 1 | B190: X:769 Y:1022
A191: 5 | B191: 16
A192: 1 | B192: X:767 Y:1022
A193: 1 | B193: X:766 Y:1022
A194: 1 | B194: X:766 Y:1022
A195: 1 | B195: X:763 Y:1022
A196: 5 | B196: 16
A197: 1 | B197: X:762 Y:1022
A198: 1 | B198: X:757 Y:1023
A199: 1 | B199: X:755 Y:1023
A200: 5 | B200: 15
A201: 1 | B201: X:749 Y:1023
A202: 1 | B202: X:747 Y:1023
A203: 1 | B203: X:737 Y:1023
... 1221 more rows

Sheet recorded macros basic pattern
A1: OAM | B1: attribute1 | C1: attribute2 | D1: attribute3 | E1: attribute4 | F1: attribute5 | G1: attribute6 | H1: Y0
A2: object1 | B2: =RANDBETWEEN(50,100) -> 71 | C2: =RANDBETWEEN(50,100) -> 95 | D2: 55 | E2: 80 | F2: 77 | G2: 88 | H2: 1000
A3: object2 | B3: =RANDBETWEEN(50,100) -> 88 | C3: 57 | D3: 57 | E3: 55 | F3: 98 | G3: 94 | H3: 1000
A4: object3 | B4: 92 | C4: 57 | D4: 79 | E4: 78 | F4: 65 | G4: 50 | H4: 1000
A5: object4 | B5: 76 | C5: 77 | D5: 75 | E5: 82 | F5: 90 | G5: 94 | H5: 1000
A6: object5 | B6: 79 | C6: 91 | D6: 78 | E6: 76 | F6: 55 | G6: 68 | H6: 1000
A7: object6 | B7: 55 | C7: 83 | D7: 63 | E7: 73 | F7: 60 | G7: 71 | H7: 1000
A8: object7 | B8: 63 | C8: 77 | D8: 68 | E8: 72 | F8: 80 | G8: 96 | H8: 1000
A9: object8 | B9: 71 | C9: 97 | D9: 51 | E9: 51 | F9: 98 | G9: 51 | H9: 1000
A10: object9 | B10: 84 | C10: 61 | D10: 74 | E10: 63 | F10: 77 | G10: 58 | H10: 1000
A11: object10 | B11: 59 | C11: 66 | D11: 55 | E11: 62 | F11: 99 | G11: 53 | H11: 1000
A12: object11 | B12: 66 | C12: 85 | D12: 94 | E12: 60 | F12: 65 | G12: 61 | H12: 1000
A13: object12 | B13: 82 | C13: 63 | D13: 100 | E13: 75 | F13: 68 | G13: 79 | H13: 1000
A14: object13 | B14: 86 | C14: 84 | D14: 50 | E14: 62 | F14: 96 | G14: 76 | H14: 1000
A15: object14 | B15: 84 | C15: 73 | D15: 53 | E15: 64 | F15: 67 | G15: 62 | H15: 1000
A16: object15 | B16: 70 | C16: 79 | D16: 65 | E16: 54 | F16: 78 | G16: 99 | H16: 1000
A17: object16 | B17: 84 | C17: 89 | D17: 65 | E17: 69 | F17: 56 | G17: 76 | H17: 1000

Sheet recorded macro replayed version
A1: OAM | B1: attribute1 | C1: attribute2 | D1: attribute3 | E1: attribute4 | F1: attribute5 | G1: attribute6 | H1: Y0 | J1: CTRL+Q
A2: object1 | B2: =RANDBETWEEN(50,100) -> 92 | C2: =RANDBETWEEN(50,100) -> 96 | D2: 72 | E2: 71 | F2: 77 | G2: 95 | H2: 1000 | J2: Sub Makró1()
A3: object2 | B3: =RANDBETWEEN(50,100) -> 99 | C3: 73 | D3: 70 | E3: 76 | F3: 61 | G3: 93 | H3: 1000 | J3: '
A4: object3 | B4: 84 | C4: 60 | D4: 66 | E4: 84 | F4: 69 | G4: 79 | H4: 1000 | J4: ' Makró1 Makró
A5: object4 | B5: 56 | C5: 66 | D5: 97 | E5: 91 | F5: 96 | G5: 91 | H5: 1000 | J5: '
A6: object5 | B6: 61 | C6: 74 | D6: 51 | E6: 88 | F6: 73 | G6: 69 | H6: 1000 | J6: ' Billentyűparancs: Ctrl+q
A7: object6 | B7: 56 | C7: 55 | D7: 77 | E7: 51 | F7: 91 | G7: 77 | H7: 1000 | J7: '
A8: object7 | B8: 51 | C8: 72 | D8: 65 | E8: 70 | F8: 83 | G8: 61 | H8: 1000 | J8: ActiveCell.FormulaR1C1 = "OAM"
A9: object8 | B9: 84 | C9: 92 | D9: 69 | E9: 63 | F9: 82 | G9: 80 | H9: 1000 | J9: Range("A2").Select
A10: object9 | B10: 68 | C10: 96 | D10: 68 | E10: 69 | F10: 74 | G10: 58 | H10: 1000 | J10: ActiveCell.FormulaR1C1 = "object1"
A11: object10 | B11: 72 | C11: 53 | D11: 86 | E11: 81 | F11: 80 | G11: 52 | H11: 1000 | J11: Range("A2").Select
A12: object11 | B12: 94 | C12: 53 | D12: 50 | E12: 71 | F12: 53 | G12: 63 | H12: 1000 | J12: Selection.AutoFill Destination:=Range("A2:A17"), Type:=xlFillDefault
A13: object12 | B13: 70 | C13: 64 | D13: 86 | E13: 50 | F13: 76 | G13: 97 | H13: 1000 | J13: Range("A2:A17").Select
A14: object13 | B14: 82 | C14: 81 | D14: 99 | E14: 97 | F14: 52 | G14: 64 | H14: 1000 | J14: Range("B1").Select
A15: object14 | B15: 96 | C15: 86 | D15: 52 | E15: 56 | F15: 72 | G15: 61 | H15: 1000 | J15: ActiveCell.FormulaR1C1 = "attribute1"
A16: object15 | B16: 91 | C16: 69 | D16: 54 | E16: 54 | F16: 79 | G16: 90 | H16: 1000 | J16: Range("B1").Select
A17: object16 | B17: 91 | C17: 93 | D17: 83 | E17: 65 | F17: 62 | G17: 94 | H17: 1000 | J17: Selection.AutoFill Destination:=Range("B1:G1"), Type:=xlFillDefault
J18: Range("B1:G1").Select
J19: Range("H1").Select
J20: ActiveCell.FormulaR1C1 = "Y0"
J21: Range("H2").Select
J22: ActiveCell.FormulaR1C1 = "1000"
J23: Range("H2").Select
J24: Selection.AutoFill Destination:=Range("H2:H17")
J25: Range("H2:H17").Select
J26: Cells.Select
J27: Cells.EntireColumn.AutoFit
J28: Range("B2").Select
J29: ActiveCell.FormulaR1C1 = "=RANDBETWEEN(50,100)"
J30: Range("B2").Select
J31: Selection.Copy
J32: Range("B2:G17").Select
J33: ActiveSheet.Paste
J34: Application.CutCopyMode = False
J35: Range("A1").Select
J36: End Sub

Sheet macro-writing
A1: OAM | B1: attribute1 | C1: attribute2 | D1: attribute3 | E1: attribute4 | F1: attribute5 | G1: attribute6 | H1: Y0 | K1: Sub Makró2()
A2: object1 | B2: =RANDBETWEEN(50,100) -> 86 | C2: 50 | D2: 54 | E2: 74 | F2: 59 | G2: 71 | H2: 1000
A3: object2 | B3: 97 | C3: 59 | D3: 63 | E3: 68 | F3: 53 | G3: 78 | H3: 1000 | K3: ' Billentyűparancs: Ctrl+e
A4: object3 | B4: 68 | C4: 99 | D4: 65 | E4: 92 | F4: 87 | G4: 60 | H4: 1000
A5: object4 | B5: 81 | C5: 75 | D5: 77 | E5: 99 | F5: 79 | G5: 84 | H5: 1000 | K5: Sheets("macro-writing").Cells(1, 1) = "OAM"
A6: object5 | B6: 51 | C6: 56 | D6: 82 | E6: 78 | F6: 59 | G6: 83 | H6: 1000
A7: object6 | B7: 72 | C7: 69 | D7: 96 | E7: 79 | F7: 90 | G7: 88 | H7: 1000 | K7: For i = 1 To 16
A8: object7 | B8: 74 | C8: 52 | D8: 81 | E8: 90 | F8: 62 | G8: 75 | H8: 1000 | K8: Sheets("macro-writing").Cells(i + 1, 1) = "object" & i
A9: object8 | B9: 84 | C9: 64 | D9: 97 | E9: 79 | F9: 100 | G9: 95 | H9: 1000 | K9: Next i
A10: object9 | B10: 67 | C10: 89 | D10: 50 | E10: 85 | F10: 57 | G10: 80 | H10: 1000
A11: object10 | B11: 50 | C11: 84 | D11: 50 | E11: 72 | F11: 77 | G11: 86 | H11: 1000 | K11: For i = 1 To 6
A12: object11 | B12: =RANDBETWEEN(50,100) -> 99 | C12: 54 | D12: 63 | E12: 96 | F12: 88 | G12: 82 | H12: 1000 | K12: Sheets("macro-writing").Cells(1, i + 1) = "attribute" & i
A13: object12 | B13: 99 | C13: 98 | D13: 71 | E13: 69 | F13: 86 | G13: 71 | H13: 1000 | K13: Next i
A14: object13 | B14: 63 | C14: 89 | D14: 95 | E14: 51 | F14: 50 | G14: 89 | H14: 1000
A15: object14 | B15: 51 | C15: 76 | D15: 94 | E15: 99 | F15: 56 | G15: 68 | H15: 1000 | K15: Sheets("macro-writing").Cells(1, 8) = "Y0"
A16: object15 | B16: 77 | C16: 77 | D16: 63 | E16: 89 | F16: 88 | G16: 80 | H16: 1000
A17: object16 | B17: 72 | C17: 56 | D17: 60 | E17: 59 | F17: 74 | G17: 54 | H17: 1000 | K17: For i = 1 To 16
K18: Sheets("macro-writing").Cells(i + 1, 8) = 1000
K19: Next i
K21: For i = 1 To 16
K22: For j = 1 To 6
K23: Sheets("macro-writing").Cells(i + 1, j + 1).Formula = "=RANDBETWEEN(50,100)"
K24: Next j
K26: Rem Calculate
K28: Next i
K31: End Sub

Sheet info
A1: Sheets | B1: Content | D1: Literature
A2: similarity analysis (*) | B2: relevant analytical steps - hand-made | D2: keyloggers | E2: https://www.raymond.cc/blog/free-and-simple-keylogger-to-monitor-keystrokes-in-windows/
A3: keystrokemousemacro | B3: hand-made activities can also be recorded and replayed (without using Excel-Macros) | E3: https://www.comparitech.com/blog/vpn-privacy/what-is-keylogger/
A4: recorded macros (*) | B4: hand-made pattern and replayed version within Excel | E4: https://softwarerecs.stackexchange.com/questions/14490/whats-a-good-keystroke-macro-recorder-and-replayer-on-windows
A5: macro-writing | B5: cell-oriented macro - hand-made | E5: https://nemex-studios.com/software/Mouse%20Recorder%20Pro%202%202.0.7.6/download
A6: coco | B6: macro-driven similarity analysis including relativized solver calls | D6: Recommenations
B7: https://www.youtube.com/watch?v=cIQnLJt6SnM | D7: google spreadsheets+online-solver | E7: https://docs.google.com/spreadsheets/d/1sEbStn1MlsfE4dlu5JOPPkZKKAALPZT6TQH-wtycKU4/edit#gid=0
B8: https://stackoverflow.com/questions/40679036/set-cell-in-solver-vba-by-changing-more-than-one-cell
A9: coco_online | B9: Connections between the standard LP-inputs and the ranked OAM

Sheet coco
A1: number of objects | B1: 16 | C1: 15 | D1: <--test data
A2: number of attributes | B2: 6 | C2: 5
A3: raw OAM | B3: attribute_1 | C3: attribute_2 | D3: attribute_3 | E3: attribute_4 | F3: attribute_5 | G3: attribute_6 | H3: Y0
A4: object_1 | B4: 76 | C4: 92 | D4: 72 | E4: 95 | F4: 78 | G4: 57 | H4: 1000
A5: object_2 | B5: 100 | C5: 85 | D5: 91 | E5: 82 | F5: 78 | G5: 72 | H5: 1000
A6: object_3 | B6: 79 | C6: 99 | D6: 74 | E6: 78 | F6: 87 | G6: 88 | H6: 1000
A7: object_4 | B7: 93 | C7: 56 | D7: 99 | E7: 50 | F7: 82 | G7: 87 | H7: 1000
A8: object_5 | B8: 68 | C8: 100 | D8: 83 | E8: 93 | F8: 50 | G8: 90 | H8: 1000
A9: object_6 | B9: 91 | C9: 56 | D9: 90 | E9: 90 | F9: 53 | G9: 100 | H9: 1000
A10: object_7 | B10: 50 | C10: 91 | D10: 84 | E10: 73 | F10: 99 | G10: 85 | H10: 1000
A11: object_8 | B11: 64 | C11: 74 | D11: 50 | E11: 87 | F11: 74 | G11: 100 | H11: 1000
A12: object_9 | B12: 86 | C12: 64 | D12: 76 | E12: 82 | F12: 87 | G12: 78 | H12: 1000
A13: object_10 | B13: 93 | C13: 83 | D13: 98 | E13: 95 | F13: 88 | G13: 85 | H13: 1000
A14: object_11 | B14: 87 | C14: 57 | D14: 95 | E14: 75 | F14: 85 | G14: 93 | H14: 1000
A15: object_12 | B15: 100 | C15: 54 | D15: 77 | E15: 69 | F15: 62 | G15: 73 | H15: 1000
A16: object_13 | B16: 75 | C16: 81 | D16: 93 | E16: 70 | F16: 59 | G16: 79 | H16: 1000
A17: object_14 | B17: 85 | C17: 58 | D17: 61 | E17: 50 | F17: 95 | G17: 96 | H17: 1000
A18: object_15 | B18: 88 | C18: 66 | D18: 91 | E18: 58 | F18: 87 | G18: 75 | H18: 1000
A19: object_16 | B19: 53 | C19: 91 | D19: 58 | E19: 70 | F19: 87 | G19: 87 | H19: 1000
A20: direction | B20: 0 | C20: 0 | D20: 0 | E20: 0 | F20: 0
A21: direction | B21: 0 | C21: 0 | D21: 0 | E21: 0 | F21: 0 | G21: 0
A22: meaning | B22: the more a(i) the more Y | C22: the more a(i) the more Y | D22: the more a(i) the more Y | E22: the more a(i) the more Y | F22: the more a(i) the more Y | G22: the more a(i) the more Y | H22: constant value
A30: ranked OAM | B30: attribute_1 | C30: attribute_2 | D30: attribute_3 | E30: attribute_4 | F30: attribute_5 | G30: attribute_6 | H30: =H3 -> Y0
A31: object_1 | B31: =RANK(B4,B$4:B$19,B$21) -> 11 | C31: 3 | D31: 13 | E31: 1 | F31: 10 | G31: 16 | H31: =H4 -> 1000
A32: object_2 | B32: 1 | C32: 6 | D32: 5 | E32: 6 | F32: 10 | G32: 15 | H32: 1000
A33: object_3 | B33: 10 | C33: 2 | D33: 12 | E33: 8 | F33: 4 | G33: 6 | H33: 1000
A34: object_4 | B34: 3 | C34: 14 | D34: 1 | E34: 15 | F34: 9 | G34: 7 | H34: 1000
A35: object_5 | B35: 13 | C35: 1 | D35: 9 | E35: 3 | F35: 16 | G35: 5 | H35: 1000
A36: object_6 | B36: 5 | C36: 14 | D36: 7 | E36: 4 | F36: 15 | G36: 1 | H36: 1000
A37: object_7 | B37: 16 | C37: 4 | D37: 8 | E37: 10 | F37: 1 | G37: 9 | H37: 1000
A38: object_8 | B38: 14 | C38: 9 | D38: 16 | E38: 5 | F38: 12 | G38: 1 | H38: 1000
A39: object_9 | B39: 8 | C39: 11 | D39: 11 | E39: 6 | F39: 4 | G39: 12 | H39: 1000
A40: object_10 | B40: 3 | C40: 7 | D40: 2 | E40: 1 | F40: 3 | G40: 9 | H40: 1000
A41: object_11 | B41: =RANK(B14,B$4:B$19,B$21) -> 7 | C41: 13 | D41: 3 | E41: 9 | F41: 8 | G41: 4 | H41: 1000
A42: object_12 | B42: 1 | C42: 16 | D42: 10 | E42: 13 | F42: 13 | G42: 14 | H42: 1000
A43: object_13 | B43: 12 | C43: 8 | D43: 4 | E43: 11 | F43: 14 | G43: 11 | H43: 1000
A44: object_14 | B44: 9 | C44: 12 | D44: 14 | E44: 15 | F44: 2 | G44: 3 | H44: 1000
A45: object_15 | B45: 6 | C45: 10 | D45: 5 | E45: 14 | F45: 4 | G45: 13 | H45: 1000
A46: object_16 | B46: 15 | C46: 4 | D46: 15 | E46: 11 | F46: 4 | G46: 7 | H46: 1000
A56: stairs | B56: attribute_1 | C56: attribute_2 | D56: attribute_3 | E56: attribute_4 | F56: attribute_5 | G56: attribute_6
A57: 1 | B57: 162.2756765 | C57: 146.4349304 | D57: 151.2304158 | E57: 294.0590554 | F57: 165.9310442 | G57: 156.9827052
A58: 2 | B58: 152.1900612 | C58: 140.5779313 | D58: 147.8305961 | E58: 293.0590554 | F58: 164.9310442 | G58: 154.4388384
A59: 3 | B59: 148.1614233 | C59: 139.5779313 | D59: 146.8305961 | E59: 292.0590554 | F59: 163.9310442 | G59: 152.9827376
A60: 4 | B60: 147.1614233 | C60: 138.5779313 | D60: 145.8305961 | E60: 291.0590554 | F60: 162.9310442 | G60: 143.582791
A61: 5 | B61: 146.1614233 | C61: 135.4835373 | D61: 144.8305961 | E61: 290.0590554 | F61: 161.9310442 | G61: 142.582791
A62: 6 | B62: 145.1614233 | C62: 130.0350915 | D62: 143.8305961 | E62: 289.0590554 | F62: 160.9310442 | G62: 141.582791
A63: 7 | B63: 144.1614233 | C63: 129.0350915 | D63: 142.8305961 | E63: 288.0590554 | F63: 159.9310442 | G63: 140.582791
A64: 8 | B64: 143.1614233 | C64: 128.0350915 | D64: 141.8305961 | E64: 287.0590554 | F64: 158.9310442 | G64: 139.582791
A65: 9 | B65: 142.1614233 | C65: 127.0350915 | D65: 140.8305961 | E65: 286.0590554 | F65: 157.9310442 | G65: 138.582791
A66: 10 | B66: 141.1614233 | C66: 126.0350915 | D66: 139.8305961 | E66: 285.0590554 | F66: 156.9310442 | G66: 137.582791
A67: 11 | B67: 140.1614233 | C67: 125.0350915 | D67: 138.8305961 | E67: 284.0590554 | F67: 155.9310442 | G67: 136.582791
A68: 12 | B68: 139.1614233 | C68: 124.0350915 | D68: 137.8305961 | E68: 283.0590554 | F68: 154.9310442 | G68: 135.582791
A69: 13 | B69: 138.1614233 | C69: 123.0350915 | D69: 136.8305961 | E69: 282.0590554 | F69: 153.9310442 | G69: 134.582791
A70: 14 | B70: 137.1614233 | C70: 122.0350915 | D70: 135.8305961 | E70: 281.0590554 | F70: 152.9310442 | G70: 133.582791
A71: 15 | B71: 136.1614233 | C71: 121.0350915 | D71: 134.8305961 | E71: 280.0590554 | F71: 140.9310938 | G71: 125.1541553
A72: 16 | B72: 130.0184714 | C72: 120.0350915 | D72: 133.8305961 | E72: 0 | F72: 139.9310938 | G72: 124.1541553
B73: 2 | C73: 3 | D73: 4 | E73: 5 | F73: 6 | G73: 7
A82: differences of stairs | B82: attribute_1 | C82: attribute_2 | D82: attribute_3 | E82: attribute_4 | F82: attribute_5 | G82: attribute_6
A83: s1- s2 | B83: =B57-B58 -> 10.08561534 | C83: 5.856999174 | D83: 3.399819729 | E83: 1 | F83: 1 | G83: 2.543866728
A84: s2- s3 | B84: 4.028637872 | C84: 1 | D84: 1 | E84: 1 | F84: 1 | G84: 1.456100831
A85: s3- s4 | B85: 1 | C85: 1 | D85: 1 | E85: 1 | F85: 1 | G85: 9.399946573
A86: s4- s5 | B86: 1 | C86: 3.094393975 | D86: 1 | E86: 1 | F86: 1 | G86: 1
A87: s5- s6 | B87: 1 | C87: 5.448445745 | D87: 1 | E87: 1 | F87: 1 | G87: 1
A88: s6- s7 | B88: 1 | C88: 1 | D88: 1 | E88: 1 | F88: 1 | G88: 1
A89: s7- s8 | B89: 1 | C89: 1 | D89: 1 | E89: 1 | F89: 1 | G89: 1
A90: s8- s9 | B90: 1 | C90: 1 | D90: 1 | E90: 1 | F90: 1 | G90: 1
A91: s9- s10 | B91: 1 | C91: 1 | D91: 1 | E91: 1 | F91: 1 | G91: 1
A92: s10- s11 | B92: 1 | C92: 1 | D92: 1 | E92: 1 | F92: 1 | G92: 1
A93: s11- s12 | B93: 1 | C93: 1 | D93: 1 | E93: 1 | F93: 1 | G93: 1
A94: s12- s13 | B94: 1 | C94: 0.9999999993 | D94: 1 | E94: 1 | F94: 1 | G94: 1
A95: s13- s14 | B95: 1 | C95: 1 | D95: 1 | E95: 1 | F95: 1 | G95: 1
A96: s14- s15 | B96: 1 | C96: 1 | D96: 1 | E96: 1 | F96: 11.99995041 | G96: 8.428635765
A97: s15- s16 | B97: 6.142951859 | C97: 1 | D97: 1 | E97: 280.0590554 | F97: 1 | G97: 1
A108: estimations | B108: attribute_1 | C108: attribute_2 | D108: attribute_3 | E108: attribute_4 | F108: attribute_5 | G108: attribute_6 | H108: Y0 | I108: sum | J108: difference
A109: 1 | B109: =VLOOKUP(B31,$A$57:$G$72,B$73,0) -> 140.1614233 | C109: 139.5779313 | D109: 136.8305961 | E109: 294.0590554 | F109: 156.9310442 | G109: 124.1541553 | H109: 1000 | I109: =SUM(B109:G109) -> 991.7142056 | J109: =I109-H109 -> -8.285794442
A110: 2 | B110: 162.2756765 | C110: 130.0350915 | D110: 144.8305961 | E110: 289.0590554 | F110: 156.9310442 | G110: 125.1541553 | H110: 1000 | I110: 1008.285619 | J110: 8.285619046
A111: 3 | B111: 141.1614233 | C111: 140.5779313 | D111: 137.8305961 | E111: 287.0590554 | F111: 162.9310442 | G111: 141.582791 | H111: 1000 | I111: 1011.142841 | J111: 11.14284132
A112: 4 | B112: 148.1614233 | C112: 122.0350915 | D112: 151.2304158 | E112: 280.0590554 | F112: 157.9310442 | G112: 140.582791 | H112: 1000 | I112: 999.9998213 | J112: -0.0001786679744
A113: 5 | B113: 138.1614233 | C113: 146.4349304 | D113: 140.8305961 | E113: 292.0590554 | F113: 139.9310938 | G113: 142.582791 | H113: 1000 | I113: 999.9998901 | J113: -0.0001099143351
A114: 6 | B114: 146.1614233 | C114: 122.0350915 | D114: 142.8305961 | E114: 291.0590554 | F114: 140.9310938 | G114: 156.9827052 | H114: 1000 | I114: 999.9999653 | J114: -3.467572162e-05
A115: 7 | B115: 130.0184714 | C115: 138.5779313 | D115: 141.8305961 | E115: 285.0590554 | F115: 165.9310442 | G115: 138.582791 | H115: 1000 | I115: 999.9998895 | J115: -0.0001105366068
A116: 8 | B116: 137.1614233 | C116: 127.0350915 | D116: 133.8305961 | E116: 290.0590554 | F116: 154.9310442 | G116: 156.9827052 | H116: 1000 | I116: 999.9999157 | J116: -8.426507975e-05
A117: 9 | B117: 143.1614233 | C117: 125.0350915 | D117: 138.8305961 | E117: 289.0590554 | F117: 162.9310442 | G117: 135.582791 | H117: 1000 | I117: 994.6000016 | J117: -5.399998397
A118: 10 | B118: 148.1614233 | C118: 129.0350915 | D118: 147.8305961 | E118: 294.0590554 | F118: 163.9310442 | G118: 138.582791 | H118: 1000 | I118: 1021.600002 | J118: 21.6000016
A119: 11 | B119: =VLOOKUP(B41,$A$57:$G$72,B$73,0) -> 144.1614233 | C119: 123.0350915 | D119: 146.8305961 | E119: 286.0590554 | F119: 158.9310442 | G119: 143.582791 | H119: 1000 | I119: 1002.600002 | J119: 2.600001603
A120: 12 | B120: 162.2756765 | C120: 120.0350915 | D120: 139.8305961 | E120: 282.0590554 | F120: 153.9310442 | G120: 133.582791 | H120: 1000 | I120: 991.7142548 | J120: -8.285745188
A121: 13 | B121: 139.1614233 | C121: 128.0350915 | D121: 145.8305961 | E121: 284.0590554 | F121: 152.9310442 | G121: 136.582791 | H121: 1000 | I121: 986.6000016 | J121: -13.3999984
A122: 14 | B122: 142.1614233 | C122: 124.0350915 | D122: 135.8305961 | E122: 280.0590554 | F122: 164.9310442 | G122: 152.9827376 | H122: 1000 | I122: 999.9999482 | J122: -5.182418374e-05
A123: 15 | B123: 145.1614233 | C123: 126.0350915 | D123: 144.8305961 | E123: 281.0590554 | F123: 162.9310442 | G123: 134.582791 | H123: 1000 | I123: 994.6000016 | J123: -5.399998397
A124: 16 | B124: 136.1614233 | C124: 138.5779313 | D124: 134.8305961 | E124: 284.0590554 | F124: 162.9310442 | G124: 140.582791 | H124: 1000 | I124: 997.1428413 | J124: -2.857158678
J125: error
J126: =SUMPRODUCT(J109:J124,J109:J124) -> 1049.485714

Sheet coco_online
E1: https://miau.my-x.hu/myx-free/coco/beker_y0.php | O1: /* Objective function */
O2: min: -2 X1S1# -1 X2S1# -1 X3S1# -2 X4S1# -1 X5S1# -2 X6S1# -0 X1S2# -1 X2S2# -1 X3S2# -0 X4S2# -1 X5S2# -0 X6S2# -2 X1S3# -1 X2S3# -1 X3S3# -1 X4S3# -1 X5S3# -1 X6S3# -0 X1S4# -2 X2S4# -1 X3S4# -1 X4S4# -4 X5S4# -1 X6S4# -1 X1S5# -0 X2S5# -2 X3S5# -1 X4S5# -0 X5S5# -1 X6S5# -1 X1S6# -1 X2S6# -0 X3S6# -2 X4S6# -0 X5S6# -1 X6S6# -1 X1S7# -1 X2S7# -1 X3S7# -0 X4S7# -0 X5S7# -2 X6S7# -1 X1S8# -1 X2S8# -1 X3S8# -1 X4S8# -1 X5S8# -0 X6S8# -1 X1S9# -1 X2S9# -1 X3S9# -1 X4S9# -1 X5S9# -2 X6S9# -1 X1S10# -1 X2S10# -1 X3S10# -1 X4S10# -2 X5S10# -0 X6S10# -1 X1S11# -1 X2S11# -1 X3S11# -2 X4S11# -0 X5S11# -1 X6S11# -1 X1S12# -1 X2S12# -1 X3S12# -0 X4S12# -1 X5S12# -1 X6S12# -1 X1S13# -1 X2S13# -1 X3S13# -1 X4S13# -1 X5S13# -1 X6S13# -1 X1S14# -2 X2S14# -1 X3S14# -1 X4S14# -1 X5S14# -1 X6S14# -1 X1S15# -0 X2S15# -1 X3S15# -2 X4S15# -1 X5S15# -1 X6S15# -1 X1S16# -1 X2S16# -1 X3S16# -0 X4S16# -1 X5S16# -1 X6S16# + 1000 + 1000 + 1000 + 1000 + 1000 + 1000 + 1000 + 1000 + 1000 + 1000 + 1000 + 1000 + 1000 + 1000 + 1000 + 1000;
O3: /* Standard constraints */
O4: +X1S1# -X1S2# >=1;
A5: Azonos�t�: | B5: 1358899 | C5: Objektumok: | D5: 16 | E5: Attrib�tumok: | F5: 6 | G5: Lepcs�k: | H5: 16 | I5: Eltol�s: | J5: 0 | K5: Le�r�s: | L5: COCO Y0: 1358899 | O5: +X2S1# -X2S2# >=1;
O6: +X3S1# -X3S2# >=1;
A7: Rangsor | B7: X(A1) | C7: X(A2) | D7: X(A3) | E7: X(A4) | F7: X(A5) | G7: X(A6) | H7: Y(A7) | O7: +X4S1# -X4S2# >=1;
A8: O1 | B8: 11 | C8: 3 | D8: 13 | E8: 1 | F8: 10 | G8: 16 | H8: 1000 | O8: +X5S1# -X5S2# >=1;
A9: O2 | B9: 1 | C9: 6 | D9: 5 | E9: 6 | F9: 10 | G9: 15 | H9: 1000 | O9: +X6S1# -X6S2# >=1;
A10: O3 | B10: 10 | C10: 2 | D10: 12 | E10: 8 | F10: 4 | G10: 6 | H10: 1000 | O10: +X1S2# -X1S3# >=1;
A11: O4 | B11: 3 | C11: 14 | D11: 1 | E11: 15 | F11: 9 | G11: 7 | H11: 1000 | O11: +X2S2# -X2S3# >=1;
A12: O5 | B12: 13 | C12: 1 | D12: 9 | E12: 3 | F12: 16 | G12: 5 | H12: 1000 | O12: +X3S2# -X3S3# >=1;
A13: O6 | B13: 5 | C13: 14 | D13: 7 | E13: 4 | F13: 15 | G13: 1 | H13: 1000 | O13: +X4S2# -X4S3# >=1;
A14: O7 | B14: 16 | C14: 4 | D14: 8 | E14: 10 | F14: 1 | G14: 9 | H14: 1000 | O14: +X5S2# -X5S3# >=1;
A15: O8 | B15: 14 | C15: 9 | D15: 16 | E15: 5 | F15: 12 | G15: 1 | H15: 1000 | O15: +X6S2# -X6S3# >=1;
A16: O9 | B16: 8 | C16: 11 | D16: 11 | E16: 6 | F16: 4 | G16: 12 | H16: 1000 | O16: +X1S3# -X1S4# >=1;
A17: O10 | B17: 3 | C17: 7 | D17: 2 | E17: 1 | F17: 3 | G17: 9 | H17: 1000 | O17: +X2S3# -X2S4# >=1;
A18: O11 | B18: 7 | C18: 13 | D18: 3 | E18: 9 | F18: 8 | G18: 4 | H18: 1000 | O18: +X3S3# -X3S4# >=1;
A19: O12 | B19: 1 | C19: 16 | D19: 10 | E19: 13 | F19: 13 | G19: 14 | H19: 1000 | O19: +X4S3# -X4S4# >=1;
A20: O13 | B20: 12 | C20: 8 | D20: 4 | E20: 11 | F20: 14 | G20: 11 | H20: 1000 | O20: +X5S3# -X5S4# >=1;
A21: O14 | B21: 9 | C21: 12 | D21: 14 | E21: 15 | F21: 2 | G21: 3 | H21: 1000 | O21: +X6S3# -X6S4# >=1;
A22: O15 | B22: 6 | C22: 10 | D22: 5 | E22: 14 | F22: 4 | G22: 13 | H22: 1000 | O22: +X1S4# -X1S5# >=1;
A23: O16 | B23: 15 | C23: 4 | D23: 15 | E23: 11 | F23: 4 | G23: 7 | H23: 1000 | O23: +X2S4# -X2S5# >=1;
O24: +X3S4# -X3S5# >=1;
A25: L�pcs�k(1) | B25: X(A1) | C25: X(A2) | D25: X(A3) | E25: X(A4) | F25: X(A5) | G25: X(A6) | O25: +X4S4# -X4S5# >=1;
A26: S1 | B26: (33.1+496.8)/(2)=264.95 | C26: (32.1+246.4)/(2)=139.25 | D26: (39.1+240.4)/(2)=139.75 | E26: (15+38.1)/(2)=26.55 | F26: (951.5+484.8)/(2)=718.15 | G26: (47.1+271.4)/(2)=159.25 | O26: +X5S4# -X5S5# >=1;
A27: S2 | B27: (14+480.8)/(2)=247.4 | C27: (31.1+245.4)/(2)=138.2 | D27: (14+239.4)/(2)=126.7 | E27: (14+37.1)/(2)=25.55 | F27: (950.5+483.8)/(2)=717.15 | G27: (46.1+38.1)/(2)=42.05 | O27: +X6S4# -X6S5# >=1;
A28: S3 | B28: (13+479.8)/(2)=246.4 | C28: (30+244.4)/(2)=137.2 | D28: (13+238.4)/(2)=125.7 | E28: (13+36.1)/(2)=24.55 | F28: (943.5+251.4)/(2)=597.45 | G28: (37.1+37.1)/(2)=37.05 | O28: +X1S5# -X1S6# >=1;
A29: S4 | B29: (12+478.8)/(2)=245.4 | C29: (29+243.4)/(2)=136.2 | D29: (12+237.4)/(2)=124.7 | E29: (12+23)/(2)=17.55 | F29: (942.5+250.4)/(2)=596.45 | G29: (31.1+36.1)/(2)=33.55 | O29: +X2S5# -X2S6# >=1;
A30: S5 | B30: (11+477.8)/(2)=244.4 | C30: (28+242.4)/(2)=135.2 | D30: (11+228.4)/(2)=119.7 | E30: (11+22)/(2)=16.55 | F30: (941.5+249.4)/(2)=595.45 | G30: (27+35.1)/(2)=31.05 | O30: +X3S5# -X3S6# >=1;
A31: S6 | B31: (10+476.8)/(2)=243.4 | C31: (10+10)/(2)=10 | D31: (10+227.4)/(2)=118.7 | E31: (10+21)/(2)=15.55 | F31: (940.5+248.4)/(2)=594.45 | G31: (10+34.1)/(2)=22.05 | O31: +X4S5# -X4S6# >=1;
A32: S7 | B32: (9+475.8)/(2)=242.4 | C32: (9+9)/(2)=9 | D32: (9+226.4)/(2)=117.7 | E32: (9+20)/(2)=14.5 | F32: (939.5+247.4)/(2)=593.45 | G32: (9+33.1)/(2)=21.05 | O32: +X5S5# -X5S6# >=1;
A33: S8 | B33: (8+474.8)/(2)=241.4 | C33: (8+8)/(2)=8 | D33: (8+225.4)/(2)=116.7 | E33: (8+19)/(2)=13.5 | F33: (938.5+246.4)/(2)=592.45 | G33: (8+32.1)/(2)=20.05 | O33: +X6S5# -X6S6# >=1;
A34: S9 | B34: (7+473.8)/(2)=240.4 | C34: (7+7)/(2)=7 | D34: (7+224.4)/(2)=115.7 | E34: (7+18)/(2)=12.5 | F34: (937.5+245.4)/(2)=591.45 | G34: (7+31.1)/(2)=19.05 | O34: +X1S6# -X1S7# >=1;
A35: S10 | B35: (6+472.8)/(2)=239.4 | C35: (6+6)/(2)=6 | D35: (6+223.4)/(2)=114.7 | E35: (6+17)/(2)=11.5 | F35: (936.5+244.4)/(2)=590.45 | G35: (6+30)/(2)=18.05 | O35: +X2S6# -X2S7# >=1;
A36: S11 | B36: (5+471.8)/(2)=238.4 | C36: (5+5)/(2)=5 | D36: (5+222.4)/(2)=113.7 | E36: (5+16)/(2)=10.5 | F36: (935.5+243.4)/(2)=589.45 | G36: (5+29)/(2)=17.05 | O36: +X3S6# -X3S7# >=1;
A37: S12 | B37: (4+470.8)/(2)=237.4 | C37: (4+4)/(2)=4 | D37: (4+4)/(2)=4 | E37: (4+15)/(2)=9.5 | F37: (934.5+242.4)/(2)=588.45 | G37: (4+28)/(2)=16.05 | O37: +X4S6# -X4S7# >=1;
A38: S13 | B38: (3+459.7)/(2)=231.4 | C38: (3+3)/(2)=3 | D38: (3+3)/(2)=3 | E38: (3+14)/(2)=8.5 | F38: (933.5+241.4)/(2)=587.45 | G38: (3+27)/(2)=15 | O38: +X5S6# -X5S7# >=1;
A39: S14 | B39: (2+458.7)/(2)=230.35 | C39: (2+2)/(2)=2 | D39: (2+2)/(2)=2 | E39: (2+13)/(2)=7.5 | F39: (932.5+240.4)/(2)=586.45 | G39: (2+26)/(2)=14 | O39: +X6S6# -X6S7# >=1;
A40: S15 | B40: (1+457.7)/(2)=229.35 | C40: (1+1)/(2)=1 | D40: (1+1)/(2)=1 | E40: (1+1)/(2)=1 | F40: (920.5+1)/(2)=460.75 | G40: (1+1)/(2)=1 | O40: +X1S7# -X1S8# >=1;
A41: S16 | B41: (0+0)/(2)=0 | C41: (0+0)/(2)=0 | D41: (0+0)/(2)=0 | E41: (0+0)/(2)=0 | F41: (919.5+0)/(2)=459.75 | G41: (0+0)/(2)=0 | O41: +X2S7# -X2S8# >=1;
O42: +X3S7# -X3S8# >=1;
A43: L�pcs�k(2) | B43: X(A1) | C43: X(A2) | D43: X(A3) | E43: X(A4) | F43: X(A5) | G43: X(A6) | O43: +X4S7# -X4S8# >=1;
A44: S1 | B44: 264.9 | C44: 139.2 | D44: 139.7 | E44: 26.5 | F44: 718.2 | G44: 159.3 | O44: +X5S7# -X5S8# >=1;
A45: S2 | B45: 247.4 | C45: 138.2 | D45: 126.7 | E45: 25.5 | F45: 717.2 | G45: 42.1 | O45: +X6S7# -X6S8# >=1;
A46: S3 | B46: 246.4 | C46: 137.2 | D46: 125.7 | E46: 24.5 | F46: 597.5 | G46: 37.1 | O46: +X1S8# -X1S9# >=1;
A47: S4 | B47: 245.4 | C47: 136.2 | D47: 124.7 | E47: 17.5 | F47: 596.5 | G47: 33.6 | O47: +X2S8# -X2S9# >=1;
A48: S5 | B48: 244.4 | C48: 135.2 | D48: 119.7 | E48: 16.5 | F48: 595.5 | G48: 31.1 | O48: +X3S8# -X3S9# >=1;
A49: S6 | B49: 243.4 | C49: 10 | D49: 118.7 | E49: 15.5 | F49: 594.5 | G49: 22 | O49: +X4S8# -X4S9# >=1;
A50: S7 | B50: 242.4 | C50: 9 | D50: 117.7 | E50: 14.5 | F50: 593.5 | G50: 21 | O50: +X5S8# -X5S9# >=1;
A51: S8 | B51: 241.4 | C51: 8 | D51: 116.7 | E51: 13.5 | F51: 592.5 | G51: 20 | O51: +X6S8# -X6S9# >=1;
A52: S9 | B52: 240.4 | C52: 7 | D52: 115.7 | E52: 12.5 | F52: 591.5 | G52: 19 | O52: +X1S9# -X1S10# >=1;
A53: S10 | B53: 239.4 | C53: 6 | D53: 114.7 | E53: 11.5 | F53: 590.5 | G53: 18 | O53: +X2S9# -X2S10# >=1;
A54: S11 | B54: 238.4 | C54: 5 | D54: 113.7 | E54: 10.5 | F54: 589.5 | G54: 17 | O54: +X3S9# -X3S10# >=1;
A55: S12 | B55: 237.4 | C55: 4 | D55: 4 | E55: 9.5 | F55: 588.5 | G55: 16 | O55: +X4S9# -X4S10# >=1;
A56: S13 | B56: 231.4 | C56: 3 | D56: 3 | E56: 8.5 | F56: 587.5 | G56: 15 | O56: +X5S9# -X5S10# >=1;
A57: S14 | B57: 230.4 | C57: 2 | D57: 2 | E57: 7.5 | F57: 586.5 | G57: 14 | O57: +X6S9# -X6S10# >=1;
A58: S15 | B58: 229.4 | C58: 1 | D58: 1 | E58: 1 | F58: 460.7 | G58: 1 | O58: +X1S10# -X1S11# >=1;
A59: S16 | B59: 0 | C59: 0 | D59: 0 | E59: 0 | F59: 459.7 | G59: 0 | O59: +X2S10# -X2S11# >=1;
O60: +X3S10# -X3S11# >=1;
A61: COCO:Y0 | B61: X(A1) | C61: X(A2) | D61: X(A3) | E61: X(A4) | F61: X(A5) | G61: X(A6) | H61: Becsl�s | I61: T�ny+0 | J61: Delta | K61: Delta/T�ny | O61: +X4S10# -X4S11# >=1;
A62: O1 | B62: 238.4 | C62: 137.2 | D62: 3 | E62: 26.5 | F62: 590.5 | G62: 0 | H62: 995.6 | I62: 1000 | J62: 4.4 | K62: 0.44 | O62: +X5S10# -X5S11# >=1;
A63: O2 | B63: 264.9 | C63: 10 | D63: 119.7 | E63: 15.5 | F63: 590.5 | G63: 1 | H63: 1001.6 | I63: 1000 | J63: -1.6 | K63: -0.16 | O63: +X6S10# -X6S11# >=1;
A64: O3 | B64: 239.4 | C64: 138.2 | D64: 4 | E64: 13.5 | F64: 596.5 | G64: 22 | H64: 1013.6 | I64: 1000 | J64: -13.6 | K64: -1.36 | O64: +X1S11# -X1S12# >=1;
A65: O4 | B65: 246.4 | C65: 2 | D65: 139.7 | E65: 1 | F65: 591.5 | G65: 21 | H65: 1001.6 | I65: 1000 | J65: -1.6 | K65: -0.16 | O65: +X2S11# -X2S12# >=1;
A66: O5 | B66: 231.4 | C66: 139.2 | D66: 115.7 | E66: 24.5 | F66: 459.7 | G66: 31.1 | H66: 1001.6 | I66: 1000 | J66: -1.6 | K66: -0.16 | O66: +X3S11# -X3S12# >=1;
A67: O6 | B67: 244.4 | C67: 2 | D67: 117.7 | E67: 17.5 | F67: 460.7 | G67: 159.3 | H67: 1001.6 | I67: 1000 | J67: -1.6 | K67: -0.16 | O67: +X4S11# -X4S12# >=1;
A68: O7 | B68: 0 | C68: 136.2 | D68: 116.7 | E68: 11.5 | F68: 718.2 | G68: 19 | H68: 1001.6 | I68: 1000 | J68: -1.6 | K68: -0.16 | O68: +X5S11# -X5S12# >=1;
A69: O8 | B69: 230.4 | C69: 7 | D69: 0 | E69: 16.5 | F69: 588.5 | G69: 159.3 | H69: 1001.6 | I69: 1000 | J69: -1.6 | K69: -0.16 | O69: +X6S11# -X6S12# >=1;
A70: O9 | B70: 241.4 | C70: 5 | D70: 113.7 | E70: 15.5 | F70: 596.5 | G70: 16 | H70: 988.1 | I70: 1000 | J70: 11.9 | K70: 1.19 | O70: +X1S12# -X1S13# >=1;
A71: O10 | B71: 246.4 | C71: 9 | D71: 126.7 | E71: 26.5 | F71: 597.5 | G71: 19 | H71: 1025.2 | I71: 1000 | J71: -25.2 | K71: -2.52 | O71: +X2S12# -X2S13# >=1;
A72: O11 | B72: 242.4 | C72: 3 | D72: 125.7 | E72: 12.5 | F72: 592.5 | G72: 33.6 | H72: 1009.6 | I72: 1000 | J72: -9.6 | K72: -0.96 | O72: +X3S12# -X3S13# >=1;
A73: O12 | B73: 264.9 | C73: 0 | D73: 114.7 | E73: 8.5 | F73: 587.5 | G73: 14 | H73: 989.6 | I73: 1000 | J73: 10.4 | K73: 1.04 | O73: +X4S12# -X4S13# >=1;
A74: O13 | B74: 237.4 | C74: 8 | D74: 124.7 | E74: 10.5 | F74: 586.5 | G74: 17 | H74: 984.1 | I74: 1000 | J74: 15.9 | K74: 1.59 | O74: +X5S12# -X5S13# >=1;
A75: O14 | B75: 240.4 | C75: 4 | D75: 2 | E75: 1 | F75: 717.2 | G75: 37.1 | H75: 1001.6 | I75: 1000 | J75: -1.6 | K75: -0.16 | O75: +X6S12# -X6S13# >=1;
A76: O15 | B76: 243.4 | C76: 6 | D76: 119.7 | E76: 7.5 | F76: 596.5 | G76: 15 | H76: 988.1 | I76: 1000 | J76: 11.9 | K76: 1.19 | O76: +X1S13# -X1S14# >=1;
A77: O16 | B77: 229.4 | C77: 136.2 | D77: 1 | E77: 10.5 | F77: 596.5 | G77: 21 | H77: 994.6 | I77: 1000 | J77: 5.4 | K77: 0.54 | O77: +X2S13# -X2S14# >=1;
O78: +X3S13# -X3S14# >=1;
A79: S1 �sszeg: | B79: 1447.8 | O79: +X4S13# -X4S14# >=1;
A80: S16 �sszeg: | B80: 459.7 | O80: +X5S13# -X5S14# >=1;
A81: Becsl�s �sszeg: | B81: 15999.7 | O81: +X6S13# -X6S14# >=1;
A82: T�ny �sszeg: | B82: 16000 | O82: +X1S14# -X1S15# >=1;
A83: T�ny-becsl�s elt�r�s: | B83: -0.3 | O83: +X2S14# -X2S15# >=1;
A84: T�ny n�gyzet�sszeg: | O84: +X3S14# -X3S15# >=1;
A85: Becsl�s n�gyzet�sszeg: | O85: +X4S14# -X4S15# >=1;
A86: N�gyzet�sszeg hiba: | B86: 0 | O86: +X5S14# -X5S15# >=1;
O87: +X6S14# -X6S15# >=1;
A88: Open url | O88: +X1S15# -X1S16# >=1;
O89: +X2S15# -X2S16# >=1;
A90: Maxim�lis mem�ria haszn�lat: 1.36 Mb | O90: +X3S15# -X3S16# >=1;
A91: A futtat�s id�tartama: 0.05 mp (0 p) | O91: +X4S15# -X4S16# >=1;
O92: +X5S15# -X5S16# >=1;
O93: +X6S15# -X6S16# >=1;
O94: - X1S11# - X2S3# - X3S13# - X4S1# - X5S10# - X6S16# + 1000 >=0;
O95: - X1S1# - X2S6# - X3S5# - X4S6# - X5S10# - X6S15# + 1000 >=0;
O96: - X1S10# - X2S2# - X3S12# - X4S8# - X5S4# - X6S6# + 1000 >=0;
O97: - X1S3# - X2S14# - X3S1# - X4S15# - X5S9# - X6S7# + 1000 >=0;
O98: - X1S13# - X2S1# - X3S9# - X4S3# - X5S16# - X6S5# + 1000 >=0;
O99: - X1S5# - X2S14# - X3S7# - X4S4# - X5S15# - X6S1# + 1000 >=0;
O100: - X1S16# - X2S4# - X3S8# - X4S10# - X5S1# - X6S9# + 1000 >=0;
O101: - X1S14# - X2S9# - X3S16# - X4S5# - X5S12# - X6S1# + 1000 >=0;
O102: - X1S8# - X2S11# - X3S11# - X4S6# - X5S4# - X6S12# + 1000 >=0;
O103: - X1S3# - X2S7# - X3S2# - X4S1# - X5S3# - X6S9# + 1000 >=0;
O104: - X1S7# - X2S13# - X3S3# - X4S9# - X5S8# - X6S4# + 1000 >=0;
O105: - X1S1# - X2S16# - X3S10# - X4S13# - X5S13# - X6S14# + 1000 >=0;
O106: - X1S12# - X2S8# - X3S4# - X4S11# - X5S14# - X6S11# + 1000 >=0;
O107: - X1S9# - X2S12# - X3S14# - X4S15# - X5S2# - X6S3# + 1000 >=0;
O108: - X1S6# - X2S10# - X3S5# - X4S14# - X5S4# - X6S13# + 1000 >=0;
O109: - X1S15# - X2S4# - X3S15# - X4S11# - X5S4# - X6S7# + 1000 >=0;
O111: Feladat: Vezesse le algoritmikusan a fenti, az LP standard egyenlőtlenség rendszerét a bal oldali kiindulási sorszám-OAM adataiból!
